DepartmentFamily,Entity,Date,ExpenseType,ExpenseArea,Supplier,PaymentNumber,InvoiceDistributionAmount,InvoiceLineDescription,SupplierPostCode,TransactionType
FOOD STANDARDS AGENCY - Westminster,FOOD STANDARDS AGENCY - Westminster,2016-12-09,EXP - RENTALS UNDER NON-PFI OPERATING LEASES - OTHER RENTALS - RENT,Security & Estates,D T Z,1011701601,1841181.65,RACK RENT - QUARTERLY IN ADVANCE 25/12/2016 - 24/03/2017,EC2N 2BQ,ADMIN
FOOD STANDARDS AGENCY - Westminster,FOOD STANDARDS AGENCY - Westminster,2016-12-19,EXP - PURCHASE OF GOODS/SERV-ICT OUTSOURC&MAINT/SUPP- IT SUPPORT SERVICES,IT Service Delivery,CAPITA SECURE INFORMATION SOLUTIONS LTD,1011701659,558381.66,CORE SERVICE CHARGE DECEMBER 2016,SN14 0TW,ADMIN
FOOD STANDARDS AGENCY - Westminster,FOOD STANDARDS AGENCY - Westminster,2016-12-09,EXP - RENTALS UNDER NON-PFI OPERATING LEASES - OTHER RENTALS - RENT,Security & Estates,D T Z,1011701601,368236.33,RACK RENT - QUARTERLY IN ADVANCE 25/12/2016 - 24/03/2017,EC2N 2BQ,ADMIN
FOOD STANDARDS AGENCY - Westminster,FOOD STANDARDS AGENCY - Westminster,2016-12-23,EXP - PURCHASE OF GOODS/SERV-ICT OUTSOURC&MAINT/SUPP- IT SUPPORT SERVICES,IT Service Delivery,CAPITA SECURE INFORMATION SOLUTIONS LTD,1011701716,279190.83,CORE SERVICES CHARGES DECEMBER 2016,SN14 0TW,ADMIN
FOOD STANDARDS AGENCY - Westminster,FOOD STANDARDS AGENCY - Westminster,2016-12-08,EXP - PURCHASE OF GOODS/SERVICES - ICT OUTSOURCING & MAINT/SUPPORT,IT Strategy,RAINMAKER SOLUTIONS LTD,1011701581,177715.2,EVOLVE IT -DISCOVERY AND DESIGN PHASE,MK18 1HD,ADMIN
FOOD STANDARDS AGENCY - Westminster,FOOD STANDARDS AGENCY - Westminster,2016-12-15,EXP - PURCHASE OF GOODS/SERVICES - SHARED SERV OUTSRCG- CIVIL SERV PENSION ADMIN,Finance Director & Branch,LONDON PENSIONS FUND AUTHORITY,1011701645,149333,DEC16 FUND VALUATION 2013,EC3N 4LP,ADMIN
FOOD STANDARDS AGENCY - Westminster,FOOD STANDARDS AGENCY - Westminster,2016-12-05,EXP - PURCHASE OF GOODS/SERVICES - ACCOMMODATION & BLDNG MANAGEMENT - CILOR,Security & Estates,LONDON BOROUGH OF CAMDEN,1011701535,105468,BUSINESS RATES FOR AVIATION HOUSE,WC1H 8EQ,ADMIN
FOOD STANDARDS AGENCY - Westminster,FOOD STANDARDS AGENCY - Westminster,2016-12-06,EXP - PURCHASE OF GOODS/SERVICES - OTHER - PROGRAMME EXPENDITURE,Food Production Branch,ANIMAL AND PLANT HEALTH AGENCY,2012700103,88218.8,"DEFAULT-05/01,04/01,02/02,08/01,07/02,08/02,02/03-PROVISION OF SAMPLING SCHEDULE",YO1 7PX,PROGRAMME
FOOD STANDARDS AGENCY - Westminster,FOOD STANDARDS AGENCY - Westminster,2016-12-05,EXP - PURCHASE OF GOODS/SERVICES - OTHER - PROGRAMME EXPENDITURE,Contaminants Policy & Strategy Unit,FERA SCIENCE LIMITED,1011701543,49794,CHARGES IN RESPECT OF PROFESSIONAL SERVICES,YO41 1LZ,PROGRAMME
FOOD STANDARDS AGENCY - Westminster,FOOD STANDARDS AGENCY - Westminster,2016-12-13,EXP - PURCHASE OF GOODS/SERVICES - OTHER - PROGRAMME EXPENDITURE,Analysis & Research Branch,NATIONAL CENTRE FOR SOCIAL RESEARCH,1011701626,37490,20% RETENTION,EC1V 0AX,PROGRAMME
FOOD STANDARDS AGENCY - Westminster,FOOD STANDARDS AGENCY - Westminster,2016-12-08,EXP - PURCHASE OF GOODS/SERVICES - ICT OUTSOURCING & MAINT/SUPPORT,IT Strategy,RAINMAKER SOLUTIONS LTD,1011701581,35543.04,EVOLVE IT -DISCOVERY AND DESIGN PHASE,MK18 1HD,ADMIN
FOOD STANDARDS AGENCY - Westminster,FOOD STANDARDS AGENCY - Westminster,2016-12-14,EXP - PURCHASE OF GOODS/SERVICES -OTHER PROF SERV - LEGAL DEBT RECOVERY COSTS,Finance Director & Branch,FLINT BISHOP LLP,1011701635,33974.33,COUNSEL FEES INV 52021,DE1 3HQ,ADMIN
FOOD STANDARDS AGENCY - Westminster,FOOD STANDARDS AGENCY - Westminster,2016-12-02,EXP - PURCHASE OF GOODS/SERVICES - OTHER - PROGRAMME EXPENDITURE,Chief Scientist,T N S UK LTD,1011701531,30516.8,"FSA CHEMICAL 2,PHASE 1 MATERIAL SIGNED OFF, JOB NO- 260138422",SE1 2QY,PROGRAMME
FOOD STANDARDS AGENCY - Westminster,FOOD STANDARDS AGENCY - Westminster,2016-12-28,EXP - PURCHASE OF GOODS/SERVICES - OTHER - PROGRAMME EXPENDITURE,Food Incidents & Resilience - Prog,T N S UK LTD,1011701733,30506.75,"EFFICACY OF RECALLS- CON BIZ AND LA, JOB NUMBER - 260138927",SE1 2QY,PROGRAMME
FOOD STANDARDS AGENCY - Westminster,FOOD STANDARDS AGENCY - Westminster,2016-12-21,EXP - PURCHASE OF GOODS/SERVICES - PERSONNEL RELATED - MEMBERSHIP OF ORGANISATIONS,Chief Scientist,ELSEVIER B V,1011701691,28594.98,GOVERNMENT EDITION FEE FOR PERIOD FROM OCT 1 2016 TOL SEP 30 2017,1043 NX,ADMIN
FOOD STANDARDS AGENCY - Westminster,FOOD STANDARDS AGENCY - Westminster,2016-12-02,EXP - PURCHASE OF GOODS/SERVICES - OTHER - PROGRAMME EXPENDITURE,Comms Directors Office,S K V COMMUNICATIONS,1011701523,26136,CAMPAIGN PR  AND SUPPORT -,M3 7NA,PROGRAMME
FOOD STANDARDS AGENCY - Westminster,FOOD STANDARDS AGENCY - Westminster,2016-12-19,EXP - PURCHASE OF GOODS/SERVICES - OTHER - LAUNDRY,Operational Delivery,APPARELMASTER UK LTD,1011701661,25974.03,REGION 546 NEW CONTRACT,PR2 9ZD,PROGRAMME
FOOD STANDARDS AGENCY - Westminster,FOOD STANDARDS AGENCY - Westminster,2016-12-15,EXP - PURCHASE OF GOODS/SERVICES - OFFICE RELATED,Chief Scientist,UNIVERSITY OF WARWICK,1011701639,25291.09,FSA-PHE ACADMEIC WORKSHOP,CV4 8UW,ADMIN
FOOD STANDARDS AGENCY - Westminster,FOOD STANDARDS AGENCY - Westminster,2016-12-02,EXP - PURCHASE OF GOODS/SERVICES - OTHER - PROGRAMME EXPENDITURE,Comms Directors Office,S K V COMMUNICATIONS,1011701523,24960,ACRYLAMIDE CAMPAIGN PR COST,M3 7NA,PROGRAMME
FOOD STANDARDS AGENCY - Westminster,FOOD STANDARDS AGENCY - Westminster,2016-12-28,EXP - PURCHASE OF GOODS/SERVICES - OTHER - PROGRAMME EXPENDITURE,Microbiological Food Safety Branch,UNIVERSITY OF LIVERPOOL,1011701731,23741,CLAIM FOR DELIVERABLE,L69 7ZX,PROGRAMME
FOOD STANDARDS AGENCY - Westminster,FOOD STANDARDS AGENCY - Westminster,2016-12-19,EXP - AMORTISATION - INTANGIBLE ASSETS,IT Service Delivery,CAPITA SECURE INFORMATION SOLUTIONS LTD,1011701659,22743,LAPTOP BUFFER STOCK,SN14 0TW,ADMIN
FOOD STANDARDS AGENCY - Westminster,FOOD STANDARDS AGENCY - Westminster,2016-12-06,EXP - PURCHASE OF GOODS/SERV-ICT OUTSOURC&MAINT/SUPP- IT SUPPORT SERVICES,IT Service Delivery,DATABARRACKS LTD,1011701562,18736,ONLINE BACKUP SERVICE-OCT 16,SW4 9NS,ADMIN
FOOD STANDARDS AGENCY - Westminster,FOOD STANDARDS AGENCY - Westminster,2016-12-05,EXP - PURCHASE OF GOODS/SERVICES - OTHER FACILTIES COSTS - SECURITY,Security & Estates,INTERSERVE FM LTD,1011701538,17945.24,FACILITIES MANAGEMENT SERVICES OCTOBER 2016,SE1 8RT,ADMIN
FOOD STANDARDS AGENCY - Westminster,FOOD STANDARDS AGENCY - Westminster,2016-12-19,EXP - PURCHASE OF GOODS/SERVICES - OTHER FACILTIES COSTS - SECURITY,Security & Estates,INTERSERVE FM LTD,1011701663,17945.24,FIXED FEE WORKS COMPLETED FOR NOVEMBER 2016,SE1 8RT,ADMIN
FOOD STANDARDS AGENCY - Westminster,FOOD STANDARDS AGENCY - Westminster,2016-12-14,EXP - PURCHASE OF GOODS/SERVICES - OTHER - CARRIAGE OF SAMPLES,Operational Delivery,TOPSPEED COURIERS LIMITED,1011701631,17862.7,RIM X 364,WA16 8XN,PROGRAMME
FOOD STANDARDS AGENCY - Westminster,FOOD STANDARDS AGENCY - Westminster,2016-12-06,EXP - PURCHASE OF GOODS/SERV-ICT OUTSOURC&MAINT/SUPP- IT SUPPORT SERVICES,IT Service Delivery,DATABARRACKS LTD,1011701562,17736,ONLINE BACKUP SERVICE - SEPT 2016,SW4 9NS,ADMIN
FOOD STANDARDS AGENCY - Westminster,FOOD STANDARDS AGENCY - Westminster,2016-12-15,EXP - PURCHASE OF GOODS/SERVICES - OTHER PROFESSIONAL SERVICES,Regulatory & International,PRIME PRODUCTION LTD,1011701642,14400,INT-2714-SIMULTANEOUS INTERPRETING,UB2 4SB,ADMIN
FOOD STANDARDS AGENCY - Westminster,FOOD STANDARDS AGENCY - Westminster,2016-12-05,EXP - PURCHASE OF GOODS/SERVICES - ACCOMM & BLDNG MGMT - SHARED SITE RECHARGE,Security & Estates,INTERSERVE FM LTD,1011701538,13760.52,FACILITIES MANAGEMENT SERVICES OCTOMBER 2016,SE1 8RT,ADMIN
FOOD STANDARDS AGENCY - Westminster,FOOD STANDARDS AGENCY - Westminster,2016-12-19,EXP - PURCHASE OF GOODS/SERVICES - ACCOMM & BLDNG MGMT - SHARED SITE RECHARGE,Security & Estates,INTERSERVE FM LTD,1011701663,13760.5,FIXED FEE WORKS COMPLETED FOR NOVEMBER 2016,SE1 8RT,ADMIN
FOOD STANDARDS AGENCY - Westminster,FOOD STANDARDS AGENCY - Westminster,2016-12-05,EXP - PURCHASE OF GOODS/SERVICES - ACCOMM & BLDNG MGMT - SHARED SITE RECHARGE,Security & Estates,INTERSERVE FM LTD,1011701538,13737.11,FACILITIES MANAGEMENT SERVICES OCTOMBER 2016,SE1 8RT,ADMIN
FOOD STANDARDS AGENCY - Westminster,FOOD STANDARDS AGENCY - Westminster,2016-12-19,EXP - PURCHASE OF GOODS/SERVICES - ACCOMM & BLDNG MGMT - SHARED SITE RECHARGE,Security & Estates,INTERSERVE FM LTD,1011701663,13737.1,FIXED FEE WORKS COMPLETED FOR NOVEMBER 2016,SE1 8RT,ADMIN
FOOD STANDARDS AGENCY - Westminster,FOOD STANDARDS AGENCY - Westminster,2016-12-02,EXP - PURCHASE OF GOODS/SERVICES - OTHER - PROGRAMME EXPENDITURE,Comms Directors Office,S K V COMMUNICATIONS,1011701523,10494,CHRISTMAS COMMUNICATION CAMPAIGN AROUND FOOD WASTE,M3 7NA,PROGRAMME
FOOD STANDARDS AGENCY - Westminster,FOOD STANDARDS AGENCY - Westminster,2016-12-14,EXP - PURCHASE OF GOODS/SERVICES - OTHER - CARRIAGE OF SAMPLES,Operational Delivery,TOPSPEED COURIERS LIMITED,1011701631,8825,TB PROJECT  X 66,WA16 8XN,PROGRAMME
FOOD STANDARDS AGENCY - Westminster,FOOD STANDARDS AGENCY - Westminster,2016-12-15,EXP - PURCHASE OF GOODS/SERVICES - OTHER PROFESSIONAL SERVICES,Regulatory & International,PRIME PRODUCTION LTD,1011701642,8414.34,INT-3649-PROVISION OF EQUIPMENT FOR THE ANTIMICROBIAL RESISTANCE,UB2 4SB,ADMIN
FOOD STANDARDS AGENCY - Westminster,FOOD STANDARDS AGENCY - Westminster,2016-12-15,EXP - PURCHASE OF GOODS/SERVICES - OFFICE RELATED,Chief Scientist,UNIVERSITY OF WARWICK,1011701639,7587.33,FSA-PHE ACADMEIC WORKSHOP,CV4 8UW,ADMIN
FOOD STANDARDS AGENCY - Westminster,FOOD STANDARDS AGENCY - Westminster,2016-12-15,EXP - PURCHASE OF GOODS/SERVICES - OFFICE RELATED,Chief Scientist,UNIVERSITY OF WARWICK,1011701639,6322.77,FSA-PHE ACADMEIC WORKSHOP,CV4 8UW,ADMIN
FOOD STANDARDS AGENCY - Westminster,FOOD STANDARDS AGENCY - Westminster,2016-12-15,EXP - PURCHASE OF GOODS/SERVICES - OFFICE RELATED,Chief Scientist,UNIVERSITY OF WARWICK,1011701639,6322.77,FSA-PHE ACADMEIC WORKSHOP,CV4 8UW,ADMIN
FOOD STANDARDS AGENCY - Westminster,FOOD STANDARDS AGENCY - Westminster,2016-12-23,EXP - PURCHASE OF GOODS/SERV-ICT OUTSOURC&MAINT/SUPP- IT SUPPORT SERVICES,IT Service Delivery,CAPITA SECURE INFORMATION SOLUTIONS LTD,1011701716,6108.7,VOIP CALL CHARGES OCTOBER 2016,SN14 0TW,ADMIN
FOOD STANDARDS AGENCY - Westminster,FOOD STANDARDS AGENCY - Westminster,2016-12-05,EXP - PURCHASE OF GOODS/SERVICES - ACCOMM & BLDNG MGMT - SHARED SITE RECHARGE,Security & Estates,INTERSERVE FM LTD,1011701538,5499.52,FACILITIES MANAGEMENT SERVICES OCTOMBER 2016,SE1 8RT,ADMIN
FOOD STANDARDS AGENCY - Westminster,FOOD STANDARDS AGENCY - Westminster,2016-12-19,EXP - PURCHASE OF GOODS/SERVICES - ACCOMM & BLDNG MGMT - SHARED SITE RECHARGE,Security & Estates,INTERSERVE FM LTD,1011701663,5499.52,FIXED FEE WORKS COMPLETED FOR NOVEMBER 2016,SE1 8RT,ADMIN
FOOD STANDARDS AGENCY - Westminster,FOOD STANDARDS AGENCY - Westminster,2016-12-19,EXP - PURCHASE OF GOODS/SERVICES - OTHER - LAUNDRY,Operational Delivery,APPARELMASTER UK LTD,1011701661,5194.78,REGION 546 NEW CONTRACT,PR2 9ZD,PROGRAMME
FOOD STANDARDS AGENCY - Westminster,FOOD STANDARDS AGENCY - Westminster,2016-12-19,EXP - AMORTISATION - INTANGIBLE ASSETS,IT Service Delivery,CAPITA SECURE INFORMATION SOLUTIONS LTD,1011701659,4548.6,LAPTOP BUFFER STOCK,SN14 0TW,ADMIN
FOOD STANDARDS AGENCY - Westminster,FOOD STANDARDS AGENCY - Westminster,2016-12-21,EXP - PURCHASE OF GOODS/SERVICES - PERSONNEL RELATED - MEMBERSHIP OF ORGANISATIONS,Chief Scientist,ELSEVIER B V,1011701691,4332.57,GOVERNMENT EDITION FEE FOR PERIOD FROM OCT 1 2016 TOL SEP 30 2017,1043 NX,ADMIN
FOOD STANDARDS AGENCY - Westminster,FOOD STANDARDS AGENCY - Westminster,2016-12-05,EXP - PURCHASE OF GOODS/SERVICES - OTHER FACILTIES COSTS - SECURITY,Security & Estates,INTERSERVE FM LTD,1011701538,3589.05,FACILITIES MANAGEMENT SERVICES OCTOMBER 2016,SE1 8RT,ADMIN
FOOD STANDARDS AGENCY - Westminster,FOOD STANDARDS AGENCY - Westminster,2016-12-19,EXP - PURCHASE OF GOODS/SERVICES - OTHER FACILTIES COSTS - SECURITY,Security & Estates,INTERSERVE FM LTD,1011701663,3589.05,FIXED FEE WORKS COMPLETED FOR NOVEMBER 2016,SE1 8RT,ADMIN
FOOD STANDARDS AGENCY - Westminster,FOOD STANDARDS AGENCY - Westminster,2016-12-05,EXP - PURCHASE OF GOODS/SERVICES -ACCOMM & BLDNG MGMT - MAINTENANCE & REPAIRS,Security & Estates,INTERSERVE FM LTD,1011701538,2980.9,FACILITIES MANAGEMENT SERVICES OCTOMBER 2016,SE1 8RT,ADMIN
FOOD STANDARDS AGENCY - Westminster,FOOD STANDARDS AGENCY - Westminster,2016-12-19,EXP - PURCHASE OF GOODS/SERVICES -ACCOMM & BLDNG MGMT - MAINTENANCE & REPAIRS,Security & Estates,INTERSERVE FM LTD,1011701663,2980.9,FIXED FEE WORKS COMPLETED FOR NOVEMBER 2016,SE1 8RT,ADMIN
FOOD STANDARDS AGENCY - Westminster,FOOD STANDARDS AGENCY - Westminster,2016-12-28,EXP - PURCHASE OF GOODS/SERVICES - OTHER - PROGRAMME EXPENDITURE,Comms Directors Office,T N S UK LTD,1011701733,2800,FSA CONSUMER VIEWS ON EU AND FOOD ISSUES INFOGRAPHIC,SE1 2QY,PROGRAMME
FOOD STANDARDS AGENCY - Westminster,FOOD STANDARDS AGENCY - Westminster,2016-12-13,EXP - PURCHASE OF GOODS/SERVICES - RAIL TRAVEL,Operational Delivery,REDFERN TRAVEL LTD,1011701618,2651.65,CONSOLIDATED BUSINESS TRAVEL WEEK 49,BD1 5HQ,PROGRAMME
FOOD STANDARDS AGENCY - Westminster,FOOD STANDARDS AGENCY - Westminster,2016-12-19,EXP - PURCHASE OF GOODS/SERVICES - SUBSISTENCE,Operational Delivery,REDFERN TRAVEL LTD,1011701666,2624.31,CONSOLIDATED BUSINESS TRAVEL WEEK 50,BD1 5HQ,PROGRAMME
FOOD STANDARDS AGENCY - Westminster,FOOD STANDARDS AGENCY - Westminster,2016-12-13,EXP - PURCHASE OF GOODS/SERVICES - RAIL TRAVEL,Operations Assurance ,REDFERN TRAVEL LTD,1011701618,2601.55,CONSOLIDATED BUSINESS TRAVEL WEEK 49,BD1 5HQ,PROGRAMME
FOOD STANDARDS AGENCY - Westminster,FOOD STANDARDS AGENCY - Westminster,2016-12-19,EXP - PURCHASE OF GOODS/SERVICES - OTHER ICT COSTS,IT Service Delivery,CAPITA SECURE INFORMATION SOLUTIONS LTD,1011701659,2346,LAPTOP BUFFER STOCK,SN14 0TW,ADMIN
FOOD STANDARDS AGENCY - Westminster,FOOD STANDARDS AGENCY - Westminster,2016-12-05,EXP - PURCHASE OF GOODS/SERVICES - RAIL TRAVEL,Operational Delivery,REDFERN TRAVEL LTD,1011701539,2185.61,CONSOLIDATED BUSINESS TRAVEL WEEK 44,BD1 5HQ,PROGRAMME
FOOD STANDARDS AGENCY - Westminster,FOOD STANDARDS AGENCY - Westminster,2016-12-05,EXP - PURCHASE OF GOODS/SERVICES - RAIL TRAVEL,Regulatory Delivery ,REDFERN TRAVEL LTD,1011701539,1989.4,CONSOLIDATED BUSINESS TRAVEL WEEK 44,BD1 5HQ,ADMIN
FOOD STANDARDS AGENCY - Westminster,FOOD STANDARDS AGENCY - Westminster,2016-12-19,EXP - PURCHASE OF GOODS/SERVICES - SUBSISTENCE,Operations Assurance ,REDFERN TRAVEL LTD,1011701666,1875.1,CONSOLIDATED BUSINESS TRAVEL WEEK 50,BD1 5HQ,PROGRAMME
FOOD STANDARDS AGENCY - Westminster,FOOD STANDARDS AGENCY - Westminster,2016-12-19,EXP - PURCHASE OF GOODS/SERVICES - RAIL TRAVEL,Operational Delivery,REDFERN TRAVEL LTD,1011701666,1622.5,CONSOLIDATED BUSINESS TRAVEL WEEK 50,BD1 5HQ,PROGRAMME
FOOD STANDARDS AGENCY - Westminster,FOOD STANDARDS AGENCY - Westminster,2016-12-14,EXP - PURCHASE OF GOODS/SERVICES - OTHER - CARRIAGE OF SAMPLES,Operational Delivery,TOPSPEED COURIERS LIMITED,1011701631,1575,CAMPY X 35,WA16 8XN,PROGRAMME
FOOD STANDARDS AGENCY - Westminster,FOOD STANDARDS AGENCY - Westminster,2016-12-19,EXP - PURCHASE OF GOODS/SERVICES - RAIL TRAVEL,Operations Assurance ,REDFERN TRAVEL LTD,1011701666,1565.7,CONSOLIDATED BUSINESS TRAVEL WEEK 50,BD1 5HQ,PROGRAMME
FOOD STANDARDS AGENCY - Westminster,FOOD STANDARDS AGENCY - Westminster,2016-12-13,EXP - PURCHASE OF GOODS/SERVICES - SUBSISTENCE,Operations Assurance ,REDFERN TRAVEL LTD,1011701618,1504.92,CONSOLIDATED BUSINESS TRAVEL WEEK 49,BD1 5HQ,PROGRAMME
FOOD STANDARDS AGENCY - Westminster,FOOD STANDARDS AGENCY - Westminster,2016-12-13,EXP - PURCHASE OF GOODS/SERVICES - RAIL TRAVEL,Finance Director & Branch,REDFERN TRAVEL LTD,1011701618,1482.75,CONSOLIDATED BUSINESS TRAVEL WEEK 49,BD1 5HQ,ADMIN
FOOD STANDARDS AGENCY - Westminster,FOOD STANDARDS AGENCY - Westminster,2016-12-19,EXP - PURCHASE OF GOODS/SERVICES - SUBSISTENCE,Chief Executive & Private Office,REDFERN TRAVEL LTD,1011701666,1402.33,CONSOLIDATED BUSINESS TRAVEL WEEK 50,BD1 5HQ,ADMIN
FOOD STANDARDS AGENCY - Westminster,FOOD STANDARDS AGENCY - Westminster,2016-12-19,EXP - AMORTISATION - INTANGIBLE ASSETS,IT Service Delivery,CAPITA SECURE INFORMATION SOLUTIONS LTD,1011701659,1228.5,HOME PRINTER BUFFER STOCK,SN14 0TW,ADMIN
FOOD STANDARDS AGENCY - Westminster,FOOD STANDARDS AGENCY - Westminster,2016-12-23,EXP - PURCHASE OF GOODS/SERV-ICT OUTSOURC&MAINT/SUPP- IT SUPPORT SERVICES,IT Service Delivery,CAPITA SECURE INFORMATION SOLUTIONS LTD,1011701716,1221.74,VOIP CALL CHARGES OCTOBER 2016,SN14 0TW,ADMIN
FOOD STANDARDS AGENCY - Westminster,FOOD STANDARDS AGENCY - Westminster,2016-12-19,EXP - PURCHASE OF GOODS/SERVICES - AIR TRAVEL,Food Crime Unit - Admin,REDFERN TRAVEL LTD,1011701666,1183.25,CONSOLIDATED BUSINESS TRAVEL WEEK 50,BD1 5HQ,ADMIN
FOOD STANDARDS AGENCY - Westminster,FOOD STANDARDS AGENCY - Westminster,2016-12-05,EXP - PURCHASE OF GOODS/SERVICES - RAIL TRAVEL,IT Service Delivery,REDFERN TRAVEL LTD,1011701539,1182.55,CONSOLIDATED BUSINESS TRAVEL WEEK 44,BD1 5HQ,ADMIN
FOOD STANDARDS AGENCY - Westminster,FOOD STANDARDS AGENCY - Westminster,2016-12-13,EXP - PURCHASE OF GOODS/SERVICES - RAIL TRAVEL,Regulating our Future,REDFERN TRAVEL LTD,1011701618,1130,CONSOLIDATED BUSINESS TRAVEL WEEK 49,BD1 5HQ,ADMIN
FOOD STANDARDS AGENCY - Westminster,FOOD STANDARDS AGENCY - Westminster,2016-12-05,EXP - PURCHASE OF GOODS/SERVICES - SUBSISTENCE,Corporate Support Unit,REDFERN TRAVEL LTD,1011701539,1127.2,CONSOLIDATED BUSINESS TRAVEL WEEK 44,BD1 5HQ,ADMIN
FOOD STANDARDS AGENCY - Westminster,FOOD STANDARDS AGENCY - Westminster,2016-12-19,EXP - PURCHASE OF GOODS/SERVICES - RAIL TRAVEL,Planning and Performance,REDFERN TRAVEL LTD,1011701666,1092.3,CONSOLIDATED BUSINESS TRAVEL WEEK 50,BD1 5HQ,ADMIN
FOOD STANDARDS AGENCY - Westminster,FOOD STANDARDS AGENCY - Westminster,2016-12-19,EXP - PURCHASE OF GOODS/SERVICES - RAIL TRAVEL,Regulatory Delivery ,REDFERN TRAVEL LTD,1011701666,1081.9,CONSOLIDATED BUSINESS TRAVEL WEEK 50,BD1 5HQ,ADMIN
FOOD STANDARDS AGENCY - Westminster,FOOD STANDARDS AGENCY - Westminster,2016-12-19,EXP - PURCHASE OF GOODS/SERVICES - OTHER ICT COSTS - COMPUTER HARDWARE,IT Service Delivery,CAPITA SECURE INFORMATION SOLUTIONS LTD,1011701659,1062.68,FHRS ENHANCED CPU UTILISATION DECEMBER 2016,SN14 0TW,ADMIN
FOOD STANDARDS AGENCY - Westminster,FOOD STANDARDS AGENCY - Westminster,2016-12-05,EXP - PURCHASE OF GOODS/SERVICES - RAIL TRAVEL,Planning and Performance,REDFERN TRAVEL LTD,1011701539,1022.8,CONSOLIDATED BUSINESS TRAVEL WEEK 44,BD1 5HQ,ADMIN
FOOD STANDARDS AGENCY - Westminster,FOOD STANDARDS AGENCY - Westminster,2016-12-19,EXP - PURCHASE OF GOODS/SERVICES -  FOREIGN AIR TRAVEL,Contaminants Policy & Strategy Unit,REDFERN TRAVEL LTD,1011701666,976,CONSOLIDATED BUSINESS TRAVEL WEEK 50,BD1 5HQ,ADMIN
FOOD STANDARDS AGENCY - Westminster,FOOD STANDARDS AGENCY - Westminster,2016-12-19,EXP - PURCHASE OF GOODS/SERVICES - SUBSISTENCE,Regulatory Delivery ,REDFERN TRAVEL LTD,1011701666,955.51,CONSOLIDATED BUSINESS TRAVEL WEEK 50,BD1 5HQ,ADMIN
FOOD STANDARDS AGENCY - Westminster,FOOD STANDARDS AGENCY - Westminster,2016-12-19,EXP - PURCHASE OF GOODS/SERVICES - ICT OUTSOURCING & MAINT/SUPPORT,Regulatory Delivery,CAPITA SECURE INFORMATION SOLUTIONS LTD,1011701659,936.6,FHRS NI CHANGES NOV 16,SN14 0TW,ADMIN
FOOD STANDARDS AGENCY - Westminster,FOOD STANDARDS AGENCY - Westminster,2016-12-19,EXP - PURCHASE OF GOODS/SERVICES - AIR TRAVEL,Regulatory & International,REDFERN TRAVEL LTD,1011701666,925.16,CONSOLIDATED BUSINESS TRAVEL WEEK 50,BD1 5HQ,ADMIN
FOOD STANDARDS AGENCY - Westminster,FOOD STANDARDS AGENCY - Westminster,2016-12-13,EXP - PURCHASE OF GOODS/SERVICES - RAIL TRAVEL,Regulatory Delivery ,REDFERN TRAVEL LTD,1011701618,913.9,CONSOLIDATED BUSINESS TRAVEL WEEK 49,BD1 5HQ,ADMIN
FOOD STANDARDS AGENCY - Westminster,FOOD STANDARDS AGENCY - Westminster,2016-12-05,EXP - PURCHASE OF GOODS/SERVICES - SUBSISTENCE,Operational Delivery,REDFERN TRAVEL LTD,1011701539,907.2,CONSOLIDATED BUSINESS TRAVEL WEEK 44,BD1 5HQ,PROGRAMME
FOOD STANDARDS AGENCY - Westminster,FOOD STANDARDS AGENCY - Westminster,2016-12-05,EXP - PURCHASE OF GOODS/SERVICES - RAIL TRAVEL,Operations Assurance ,REDFERN TRAVEL LTD,1011701539,902.9,CONSOLIDATED BUSINESS TRAVEL WEEK 44,BD1 5HQ,PROGRAMME
FOOD STANDARDS AGENCY - Westminster,FOOD STANDARDS AGENCY - Westminster,2016-12-13,EXP - PURCHASE OF GOODS/SERVICES - RAIL TRAVEL,Chief Executive & Private Office,REDFERN TRAVEL LTD,1011701618,872.2,CONSOLIDATED BUSINESS TRAVEL WEEK 49,BD1 5HQ,ADMIN
FOOD STANDARDS AGENCY - Westminster,FOOD STANDARDS AGENCY - Westminster,2016-12-13,EXP - PURCHASE OF GOODS/SERVICES - RAIL TRAVEL,Area 4 North East England - Cluster 41,REDFERN TRAVEL LTD,1011701618,831.5,CONSOLIDATED BUSINESS TRAVEL WEEK 49,BD1 5HQ,PROGRAMME
FOOD STANDARDS AGENCY - Westminster,FOOD STANDARDS AGENCY - Westminster,2016-12-19,EXP - PURCHASE OF GOODS/SERVICES - OTHER ICT COSTS - IT DEVELOPMENT,IT Strategy,CAPITA SECURE INFORMATION SOLUTIONS LTD,1011701659,755.1,FHRS CLONE,SN14 0TW,ADMIN
FOOD STANDARDS AGENCY - Westminster,FOOD STANDARDS AGENCY - Westminster,2016-12-13,EXP - PURCHASE OF GOODS/SERVICES - RAIL TRAVEL,Planning and Performance,REDFERN TRAVEL LTD,1011701618,742.25,CONSOLIDATED BUSINESS TRAVEL WEEK 49,BD1 5HQ,ADMIN
FOOD STANDARDS AGENCY - Westminster,FOOD STANDARDS AGENCY - Westminster,2016-12-19,EXP - PURCHASE OF GOODS/SERVICES - SUBSISTENCE,Food Incidents & Resilience - Prog,REDFERN TRAVEL LTD,1011701666,739.38,CONSOLIDATED BUSINESS TRAVEL WEEK 50,BD1 5HQ,PROGRAMME
FOOD STANDARDS AGENCY - Westminster,FOOD STANDARDS AGENCY - Westminster,2016-12-05,EXP - PURCHASE OF GOODS/SERVICES - RAIL TRAVEL,Comms Directors Office,REDFERN TRAVEL LTD,1011701539,729.3,CONSOLIDATED BUSINESS TRAVEL WEEK 44,BD1 5HQ,ADMIN
FOOD STANDARDS AGENCY - Westminster,FOOD STANDARDS AGENCY - Westminster,2016-12-19,EXP - PURCHASE OF GOODS/SERVICES - RAIL TRAVEL,Finance Director & Branch,REDFERN TRAVEL LTD,1011701666,701.25,CONSOLIDATED BUSINESS TRAVEL WEEK 50,BD1 5HQ,ADMIN
FOOD STANDARDS AGENCY - Westminster,FOOD STANDARDS AGENCY - Westminster,2016-12-19,EXP - PURCHASE OF GOODS/SERVICES - RAIL TRAVEL,Comms Directors Office,REDFERN TRAVEL LTD,1011701666,692.6,CONSOLIDATED BUSINESS TRAVEL WEEK 50,BD1 5HQ,ADMIN
FOOD STANDARDS AGENCY - Westminster,FOOD STANDARDS AGENCY - Westminster,2016-12-19,EXP - PURCHASE OF GOODS/SERVICES - OTHER ICT COSTS,IT Service Delivery,CAPITA SECURE INFORMATION SOLUTIONS LTD,1011701659,666,LAPTOP BUFFER STOCK,SN14 0TW,ADMIN
FOOD STANDARDS AGENCY - Westminster,FOOD STANDARDS AGENCY - Westminster,2016-12-19,EXP - PURCHASE OF GOODS/SERVICES - RAIL TRAVEL,Food Incidents & Resilience - Prog,REDFERN TRAVEL LTD,1011701666,646.8,CONSOLIDATED BUSINESS TRAVEL WEEK 50,BD1 5HQ,PROGRAMME
FOOD STANDARDS AGENCY - Westminster,FOOD STANDARDS AGENCY - Westminster,2016-12-05,EXP - PURCHASE OF GOODS/SERVICES - RAIL TRAVEL,Procurement,REDFERN TRAVEL LTD,1011701539,636.2,CONSOLIDATED BUSINESS TRAVEL WEEK 44,BD1 5HQ,ADMIN
FOOD STANDARDS AGENCY - Westminster,FOOD STANDARDS AGENCY - Westminster,2016-12-05,EXP - PURCHASE OF GOODS/SERVICES - RAIL TRAVEL,Corporate Support Unit,REDFERN TRAVEL LTD,1011701539,635.3,CONSOLIDATED BUSINESS TRAVEL WEEK 44,BD1 5HQ,ADMIN
FOOD STANDARDS AGENCY - Westminster,FOOD STANDARDS AGENCY - Westminster,2016-12-13,EXP - PURCHASE OF GOODS/SERVICES - RAIL TRAVEL,Area 3 North West England - Cluster 32,REDFERN TRAVEL LTD,1011701618,629.7,CONSOLIDATED BUSINESS TRAVEL WEEK 49,BD1 5HQ,PROGRAMME
FOOD STANDARDS AGENCY - Westminster,FOOD STANDARDS AGENCY - Westminster,2016-12-13,EXP - PURCHASE OF GOODS/SERVICES - SUBSISTENCE,Regulatory Delivery ,REDFERN TRAVEL LTD,1011701618,617.12,CONSOLIDATED BUSINESS TRAVEL WEEK 49,BD1 5HQ,ADMIN
FOOD STANDARDS AGENCY - Westminster,FOOD STANDARDS AGENCY - Westminster,2016-12-05,EXP - PURCHASE OF GOODS/SERVICES - RAIL TRAVEL,Finance Director & Branch,REDFERN TRAVEL LTD,1011701539,614.25,CONSOLIDATED BUSINESS TRAVEL WEEK 44,BD1 5HQ,ADMIN
FOOD STANDARDS AGENCY - Westminster,FOOD STANDARDS AGENCY - Westminster,2016-12-19,EXP - PURCHASE OF GOODS/SERVICES - OTHER ICT COSTS,IT Service Delivery,CAPITA SECURE INFORMATION SOLUTIONS LTD,1011701659,602.4,LAPTOP BUFFER STOCK,SN14 0TW,ADMIN
FOOD STANDARDS AGENCY - Westminster,FOOD STANDARDS AGENCY - Westminster,2016-12-05,EXP - PURCHASE OF GOODS/SERVICES -ACCOMM & BLDNG MGMT - MAINTENANCE & REPAIRS,Security & Estates,INTERSERVE FM LTD,1011701538,596.18,FACILITIES MANAGEMENT SERVICES OCTOMBER 2016,SE1 8RT,ADMIN
FOOD STANDARDS AGENCY - Westminster,FOOD STANDARDS AGENCY - Westminster,2016-12-19,EXP - PURCHASE OF GOODS/SERVICES -ACCOMM & BLDNG MGMT - MAINTENANCE & REPAIRS,Security & Estates,INTERSERVE FM LTD,1011701663,596.18,FIXED FEE WORKS COMPLETED FOR NOVEMBER 2016,SE1 8RT,ADMIN
FOOD STANDARDS AGENCY - Westminster,FOOD STANDARDS AGENCY - Westminster,2016-12-13,EXP - PURCHASE OF GOODS/SERVICES - RAIL TRAVEL,Area 2 Wales - Cluster 23,REDFERN TRAVEL LTD,1011701618,585.65,CONSOLIDATED BUSINESS TRAVEL WEEK 49,BD1 5HQ,PROGRAMME
FOOD STANDARDS AGENCY - Westminster,FOOD STANDARDS AGENCY - Westminster,2016-12-13,EXP - PURCHASE OF GOODS/SERVICES - RAIL TRAVEL,Comms Directors Office,REDFERN TRAVEL LTD,1011701618,580.4,CONSOLIDATED BUSINESS TRAVEL WEEK 49,BD1 5HQ,ADMIN
FOOD STANDARDS AGENCY - Westminster,FOOD STANDARDS AGENCY - Westminster,2016-12-05,EXP - PURCHASE OF GOODS/SERVICES - AIR TRAVEL,Regulatory & International,REDFERN TRAVEL LTD,1011701539,569.61,CONSOLIDATED BUSINESS TRAVEL WEEK 44,BD1 5HQ,ADMIN
FOOD STANDARDS AGENCY - Westminster,FOOD STANDARDS AGENCY - Westminster,2016-12-13,EXP - PURCHASE OF GOODS/SERVICES - SUBSISTENCE,Operational Delivery,REDFERN TRAVEL LTD,1011701618,567.1,CONSOLIDATED BUSINESS TRAVEL WEEK 49,BD1 5HQ,PROGRAMME
FOOD STANDARDS AGENCY - Westminster,FOOD STANDARDS AGENCY - Westminster,2016-12-13,EXP - PURCHASE OF GOODS/SERVICES - SUBSISTENCE,Area 2 Wales - Cluster 23,REDFERN TRAVEL LTD,1011701618,559.38,CONSOLIDATED BUSINESS TRAVEL WEEK 49,BD1 5HQ,PROGRAMME
FOOD STANDARDS AGENCY - Westminster,FOOD STANDARDS AGENCY - Westminster,2016-12-13,EXP - PURCHASE OF GOODS/SERVICES - RAIL TRAVEL,IT Information & Knowledge Management,REDFERN TRAVEL LTD,1011701618,527.1,CONSOLIDATED BUSINESS TRAVEL WEEK 49,BD1 5HQ,ADMIN
FOOD STANDARDS AGENCY - Westminster,FOOD STANDARDS AGENCY - Westminster,2016-12-19,EXP - PURCHASE OF GOODS/SERVICES - TELECOMS - TELEPHONE,IT Service Delivery,CAPITA SECURE INFORMATION SOLUTIONS LTD,1011701659,517.5,NEW BROADBAND INSTALLATION PLANT,SN14 0TW,ADMIN
FOOD STANDARDS AGENCY - Westminster,FOOD STANDARDS AGENCY - Westminster,2016-12-13,EXP - PURCHASE OF GOODS/SERVICES - RAIL TRAVEL,IT Service Delivery,REDFERN TRAVEL LTD,1011701618,503.2,CONSOLIDATED BUSINESS TRAVEL WEEK 49,BD1 5HQ,ADMIN
FOOD STANDARDS AGENCY - Westminster,FOOD STANDARDS AGENCY - Westminster,2016-12-05,EXP - PURCHASE OF GOODS/SERVICES - SUBSISTENCE,Comms Directors Office,REDFERN TRAVEL LTD,1011701539,458.55,CONSOLIDATED BUSINESS TRAVEL WEEK 44,BD1 5HQ,ADMIN
FOOD STANDARDS AGENCY - Westminster,FOOD STANDARDS AGENCY - Westminster,2016-12-13,EXP - PURCHASE OF GOODS/SERVICES - SUBSISTENCE,Regulatory & International,REDFERN TRAVEL LTD,1011701618,457.72,CONSOLIDATED BUSINESS TRAVEL WEEK 49,BD1 5HQ,ADMIN
FOOD STANDARDS AGENCY - Westminster,FOOD STANDARDS AGENCY - Westminster,2016-12-19,EXP - PURCHASE OF GOODS/SERVICES - RAIL TRAVEL,Organisational Development,REDFERN TRAVEL LTD,1011701666,449.4,CONSOLIDATED BUSINESS TRAVEL WEEK 50,BD1 5HQ,ADMIN
FOOD STANDARDS AGENCY - Westminster,FOOD STANDARDS AGENCY - Westminster,2016-12-19,EXP - PURCHASE OF GOODS/SERVICES - RAIL TRAVEL,Contaminants HoD,REDFERN TRAVEL LTD,1011701666,447.5,CONSOLIDATED BUSINESS TRAVEL WEEK 50,BD1 5HQ,ADMIN
FOOD STANDARDS AGENCY - Westminster,FOOD STANDARDS AGENCY - Westminster,2016-12-19,EXP - PURCHASE OF GOODS/SERVICES - SUBSISTENCE,Area 5 South West England - Cluster 57,REDFERN TRAVEL LTD,1011701666,446.83,CONSOLIDATED BUSINESS TRAVEL WEEK 50,BD1 5HQ,PROGRAMME
FOOD STANDARDS AGENCY - Westminster,FOOD STANDARDS AGENCY - Westminster,2016-12-19,EXP - PURCHASE OF GOODS/SERVICES - SUBSISTENCE,Comms Directors Office,REDFERN TRAVEL LTD,1011701666,439.81,CONSOLIDATED BUSINESS TRAVEL WEEK 50,BD1 5HQ,ADMIN
FOOD STANDARDS AGENCY - Westminster,FOOD STANDARDS AGENCY - Westminster,2016-12-19,EXP - PURCHASE OF GOODS/SERVICES - SUBSISTENCE,Legal Branch A & Investigations,REDFERN TRAVEL LTD,1011701666,418.9,CONSOLIDATED BUSINESS TRAVEL WEEK 50,BD1 5HQ,ADMIN
FOOD STANDARDS AGENCY - Westminster,FOOD STANDARDS AGENCY - Westminster,2016-12-19,EXP - PURCHASE OF GOODS/SERVICES - OTHER ICT COSTS,IT Service Delivery,CAPITA SECURE INFORMATION SOLUTIONS LTD,1011701659,402,YORK STORE CONSUMABLE BUFFER STOCK,SN14 0TW,ADMIN
FOOD STANDARDS AGENCY - Westminster,FOOD STANDARDS AGENCY - Westminster,2016-12-19,EXP - PURCHASE OF GOODS/SERVICES - OTHER ICT COSTS,IT Service Delivery,CAPITA SECURE INFORMATION SOLUTIONS LTD,1011701659,402,LONDON STORE CONSUMABLE BUFFER STOCK,SN14 0TW,ADMIN
FOOD STANDARDS AGENCY - Westminster,FOOD STANDARDS AGENCY - Westminster,2016-12-19,EXP - PURCHASE OF GOODS/SERVICES - OTHER ICT COSTS,IT Service Delivery,CAPITA SECURE INFORMATION SOLUTIONS LTD,1011701659,398.64,LONDON STORE CONSUMABLE BUFFER STOCK,SN14 0TW,ADMIN
FOOD STANDARDS AGENCY - Westminster,FOOD STANDARDS AGENCY - Westminster,2016-12-13,EXP - PURCHASE OF GOODS/SERVICES - SUBSISTENCE,Chief Executive & Private Office,REDFERN TRAVEL LTD,1011701618,397.69,CONSOLIDATED BUSINESS TRAVEL WEEK 49,BD1 5HQ,ADMIN
FOOD STANDARDS AGENCY - Westminster,FOOD STANDARDS AGENCY - Westminster,2016-12-19,EXP - PURCHASE OF GOODS/SERVICES - RAIL TRAVEL,Area 4 North East England - Cluster 41,REDFERN TRAVEL LTD,1011701666,397.4,CONSOLIDATED BUSINESS TRAVEL WEEK 50,BD1 5HQ,PROGRAMME
FOOD STANDARDS AGENCY - Westminster,FOOD STANDARDS AGENCY - Westminster,2016-12-05,EXP - PURCHASE OF GOODS/SERVICES -  FOREIGN AIR TRAVEL,Contaminants HoD,REDFERN TRAVEL LTD,1011701539,394.41,CONSOLIDATED BUSINESS TRAVEL WEEK 44,BD1 5HQ,ADMIN
FOOD STANDARDS AGENCY - Westminster,FOOD STANDARDS AGENCY - Westminster,2016-12-19,EXP - PURCHASE OF GOODS/SERVICES - OTHER ICT COSTS,IT Service Delivery,CAPITA SECURE INFORMATION SOLUTIONS LTD,1011701659,391,LONDON STORE CONSUMABLE BUFFER STOCK,SN14 0TW,ADMIN
FOOD STANDARDS AGENCY - Westminster,FOOD STANDARDS AGENCY - Westminster,2016-12-05,EXP - PURCHASE OF GOODS/SERVICES - SUBSISTENCE,Legal Branch A & Investigations,REDFERN TRAVEL LTD,1011701539,369.35,CONSOLIDATED BUSINESS TRAVEL WEEK 44,BD1 5HQ,ADMIN
FOOD STANDARDS AGENCY - Westminster,FOOD STANDARDS AGENCY - Westminster,2016-12-05,EXP - PURCHASE OF GOODS/SERVICES - SUBSISTENCE,Operations Assurance ,REDFERN TRAVEL LTD,1011701539,362.64,CONSOLIDATED BUSINESS TRAVEL WEEK 44,BD1 5HQ,PROGRAMME
FOOD STANDARDS AGENCY - Westminster,FOOD STANDARDS AGENCY - Westminster,2016-12-19,EXP - PURCHASE OF GOODS/SERVICES - OTHER ICT COSTS,IT Service Delivery,CAPITA SECURE INFORMATION SOLUTIONS LTD,1011701659,356,YORK STORE CONSUMABLE BUFFER STOCK,SN14 0TW,ADMIN
FOOD STANDARDS AGENCY - Westminster,FOOD STANDARDS AGENCY - Westminster,2016-12-19,EXP - PURCHASE OF GOODS/SERVICES - OTHER ICT COSTS,IT Service Delivery,CAPITA SECURE INFORMATION SOLUTIONS LTD,1011701659,356,LONDON STORE CONSUMABLE BUFFER STOCK,SN14 0TW,ADMIN
FOOD STANDARDS AGENCY - Westminster,FOOD STANDARDS AGENCY - Westminster,2016-12-19,EXP - PURCHASE OF GOODS/SERVICES - RAIL TRAVEL,Imports & Exports Team (Admin),REDFERN TRAVEL LTD,1011701666,348,CONSOLIDATED BUSINESS TRAVEL WEEK 50,BD1 5HQ,ADMIN
FOOD STANDARDS AGENCY - Westminster,FOOD STANDARDS AGENCY - Westminster,2016-12-19,EXP - PURCHASE OF GOODS/SERVICES - OTHER ICT COSTS,IT Service Delivery,CAPITA SECURE INFORMATION SOLUTIONS LTD,1011701659,343.5,YORK STORE CONSUMABLE BUFFER STOCK,SN14 0TW,ADMIN
FOOD STANDARDS AGENCY - Westminster,FOOD STANDARDS AGENCY - Westminster,2016-12-19,EXP - PURCHASE OF GOODS/SERVICES - OTHER ICT COSTS,IT Service Delivery,CAPITA SECURE INFORMATION SOLUTIONS LTD,1011701659,343.5,LONDON STORE CONSUMABLE BUFFER STOCK,SN14 0TW,ADMIN
FOOD STANDARDS AGENCY - Westminster,FOOD STANDARDS AGENCY - Westminster,2016-12-05,EXP - PURCHASE OF GOODS/SERVICES - SUBSISTENCE,Food Incidents & Resilience - Prog,REDFERN TRAVEL LTD,1011701539,337.65,CONSOLIDATED BUSINESS TRAVEL WEEK 44,BD1 5HQ,PROGRAMME
FOOD STANDARDS AGENCY - Westminster,FOOD STANDARDS AGENCY - Westminster,2016-12-19,EXP - PURCHASE OF GOODS/SERVICES - RAIL TRAVEL,Area 3 North West England - Cluster 34,REDFERN TRAVEL LTD,1011701666,333.65,CONSOLIDATED BUSINESS TRAVEL WEEK 50,BD1 5HQ,PROGRAMME
FOOD STANDARDS AGENCY - Westminster,FOOD STANDARDS AGENCY - Westminster,2016-12-05,EXP - PURCHASE OF GOODS/SERVICES - SUBSISTENCE,Finance Director & Branch,REDFERN TRAVEL LTD,1011701539,330.15,CONSOLIDATED BUSINESS TRAVEL WEEK 44,BD1 5HQ,ADMIN
FOOD STANDARDS AGENCY - Westminster,FOOD STANDARDS AGENCY - Westminster,2016-12-05,EXP - PURCHASE OF GOODS/SERVICES - SUBSISTENCE,Chief Executive & Private Office,REDFERN TRAVEL LTD,1011701539,321.15,CONSOLIDATED BUSINESS TRAVEL WEEK 44,BD1 5HQ,ADMIN
FOOD STANDARDS AGENCY - Westminster,FOOD STANDARDS AGENCY - Westminster,2016-12-19,EXP - PURCHASE OF GOODS/SERVICES - SUBSISTENCE,Area 5 South West England - Cluster 54,REDFERN TRAVEL LTD,1011701666,301.99,CONSOLIDATED BUSINESS TRAVEL WEEK 50,BD1 5HQ,PROGRAMME
FOOD STANDARDS AGENCY - Westminster,FOOD STANDARDS AGENCY - Westminster,2016-12-19,EXP - PURCHASE OF GOODS/SERVICES -  FOREIGN AIR TRAVEL,Food Incidents & Resilience - Prog,REDFERN TRAVEL LTD,1011701666,299,CONSOLIDATED BUSINESS TRAVEL WEEK 50,BD1 5HQ,PROGRAMME
FOOD STANDARDS AGENCY - Westminster,FOOD STANDARDS AGENCY - Westminster,2016-12-05,EXP - PURCHASE OF GOODS/SERVICES - AIR TRAVEL,Food Incidents & Resilience - Prog,REDFERN TRAVEL LTD,1011701539,294.81,CONSOLIDATED BUSINESS TRAVEL WEEK 44,BD1 5HQ,PROGRAMME
FOOD STANDARDS AGENCY - Westminster,FOOD STANDARDS AGENCY - Westminster,2016-12-05,EXP - PURCHASE OF GOODS/SERVICES - SUBSISTENCE,Internal Audit,REDFERN TRAVEL LTD,1011701539,288.8,CONSOLIDATED BUSINESS TRAVEL WEEK 44,BD1 5HQ,ADMIN
FOOD STANDARDS AGENCY - Westminster,FOOD STANDARDS AGENCY - Westminster,2016-12-19,EXP - PURCHASE OF GOODS/SERVICES - OTHER ICT COSTS,IT Service Delivery,CAPITA SECURE INFORMATION SOLUTIONS LTD,1011701659,284.84,YORK STORE CONSUMABLE BUFFER STOCK,SN14 0TW,ADMIN
FOOD STANDARDS AGENCY - Westminster,FOOD STANDARDS AGENCY - Westminster,2016-12-13,EXP - PURCHASE OF GOODS/SERVICES - AIR TRAVEL,Comms Directors Office,REDFERN TRAVEL LTD,1011701618,279.08,CONSOLIDATED BUSINESS TRAVEL WEEK 49,BD1 5HQ,ADMIN
FOOD STANDARDS AGENCY - Westminster,FOOD STANDARDS AGENCY - Westminster,2016-12-19,EXP - PURCHASE OF GOODS/SERVICES - RAIL TRAVEL,Regulatory & International,REDFERN TRAVEL LTD,1011701666,277.5,CONSOLIDATED BUSINESS TRAVEL WEEK 50,BD1 5HQ,ADMIN
FOOD STANDARDS AGENCY - Westminster,FOOD STANDARDS AGENCY - Westminster,2016-12-13,EXP - PURCHASE OF GOODS/SERVICES - RAIL TRAVEL,Corporate Support Unit,REDFERN TRAVEL LTD,1011701618,276.2,CONSOLIDATED BUSINESS TRAVEL WEEK 49,BD1 5HQ,ADMIN
FOOD STANDARDS AGENCY - Westminster,FOOD STANDARDS AGENCY - Westminster,2016-12-19,EXP - PURCHASE OF GOODS/SERVICES - SUBSISTENCE,IT Service Delivery,REDFERN TRAVEL LTD,1011701666,275.7,CONSOLIDATED BUSINESS TRAVEL WEEK 50,BD1 5HQ,ADMIN
FOOD STANDARDS AGENCY - Westminster,FOOD STANDARDS AGENCY - Westminster,2016-12-05,EXP - PURCHASE OF GOODS/SERVICES - SUBSISTENCE,Food Crime Unit - Admin,REDFERN TRAVEL LTD,1011701539,272.1,CONSOLIDATED BUSINESS TRAVEL WEEK 44,BD1 5HQ,ADMIN
FOOD STANDARDS AGENCY - Westminster,FOOD STANDARDS AGENCY - Westminster,2016-12-13,EXP - PURCHASE OF GOODS/SERVICES - FOREIGN SUBSISTENCE,Contaminants Policy & Strategy Unit,REDFERN TRAVEL LTD,1011701618,268.3,CONSOLIDATED BUSINESS TRAVEL WEEK 49,BD1 5HQ,ADMIN
FOOD STANDARDS AGENCY - Westminster,FOOD STANDARDS AGENCY - Westminster,2016-12-05,EXP - PURCHASE OF GOODS/SERVICES - RAIL TRAVEL,Food Incidents & Resilience - Prog,REDFERN TRAVEL LTD,1011701539,259.6,CONSOLIDATED BUSINESS TRAVEL WEEK 44,BD1 5HQ,PROGRAMME
FOOD STANDARDS AGENCY - Westminster,FOOD STANDARDS AGENCY - Westminster,2016-12-05,EXP - PURCHASE OF GOODS/SERVICES - SUBSISTENCE,Contaminants HoD,REDFERN TRAVEL LTD,1011701539,257.8,CONSOLIDATED BUSINESS TRAVEL WEEK 44,BD1 5HQ,ADMIN
FOOD STANDARDS AGENCY - Westminster,FOOD STANDARDS AGENCY - Westminster,2016-12-19,EXP - PURCHASE OF GOODS/SERVICES - SUBSISTENCE,Chief Scientist,REDFERN TRAVEL LTD,1011701666,256.58,CONSOLIDATED BUSINESS TRAVEL WEEK 50,BD1 5HQ,ADMIN
FOOD STANDARDS AGENCY - Westminster,FOOD STANDARDS AGENCY - Westminster,2016-12-19,EXP - PURCHASE OF GOODS/SERVICES - RAIL TRAVEL,IT Service Delivery,REDFERN TRAVEL LTD,1011701666,254.9,CONSOLIDATED BUSINESS TRAVEL WEEK 50,BD1 5HQ,ADMIN
FOOD STANDARDS AGENCY - Westminster,FOOD STANDARDS AGENCY - Westminster,2016-12-05,EXP - PURCHASE OF GOODS/SERVICES - RAIL TRAVEL,Area 5 South West England - Cluster 54,REDFERN TRAVEL LTD,1011701539,249.35,CONSOLIDATED BUSINESS TRAVEL WEEK 44,BD1 5HQ,PROGRAMME
FOOD STANDARDS AGENCY - Westminster,FOOD STANDARDS AGENCY - Westminster,2016-12-13,EXP - PURCHASE OF GOODS/SERVICES - RAIL TRAVEL,Area 5 South West England - Cluster 55,REDFERN TRAVEL LTD,1011701618,247.3,CONSOLIDATED BUSINESS TRAVEL WEEK 49,BD1 5HQ,PROGRAMME
FOOD STANDARDS AGENCY - Westminster,FOOD STANDARDS AGENCY - Westminster,2016-12-19,EXP - AMORTISATION - INTANGIBLE ASSETS,IT Service Delivery,CAPITA SECURE INFORMATION SOLUTIONS LTD,1011701659,247.2,HOME PRINTER BUFFER STOCK,SN14 0TW,ADMIN
FOOD STANDARDS AGENCY - Westminster,FOOD STANDARDS AGENCY - Westminster,2016-12-19,EXP - PURCHASE OF GOODS/SERVICES - AIR TRAVEL,Operations Assurance ,REDFERN TRAVEL LTD,1011701666,244.91,CONSOLIDATED BUSINESS TRAVEL WEEK 50,BD1 5HQ,PROGRAMME
FOOD STANDARDS AGENCY - Westminster,FOOD STANDARDS AGENCY - Westminster,2016-12-19,EXP - PURCHASE OF GOODS/SERVICES - RAIL TRAVEL,Chief Scientist,REDFERN TRAVEL LTD,1011701666,242.1,CONSOLIDATED BUSINESS TRAVEL WEEK 50,BD1 5HQ,ADMIN
FOOD STANDARDS AGENCY - Westminster,FOOD STANDARDS AGENCY - Westminster,2016-12-13,EXP - PURCHASE OF GOODS/SERVICES - RAIL TRAVEL,Contaminants HoD,REDFERN TRAVEL LTD,1011701618,238.9,CONSOLIDATED BUSINESS TRAVEL WEEK 49,BD1 5HQ,ADMIN
FOOD STANDARDS AGENCY - Westminster,FOOD STANDARDS AGENCY - Westminster,2016-12-19,EXP - PURCHASE OF GOODS/SERVICES -  FOREIGN AIR TRAVEL,Food Hygiene Policy Branch,REDFERN TRAVEL LTD,1011701666,238,CONSOLIDATED BUSINESS TRAVEL WEEK 50,BD1 5HQ,ADMIN
FOOD STANDARDS AGENCY - Westminster,FOOD STANDARDS AGENCY - Westminster,2016-12-05,EXP - PURCHASE OF GOODS/SERVICES - RAIL TRAVEL,Internal Audit,REDFERN TRAVEL LTD,1011701539,236,CONSOLIDATED BUSINESS TRAVEL WEEK 44,BD1 5HQ,ADMIN
FOOD STANDARDS AGENCY - Westminster,FOOD STANDARDS AGENCY - Westminster,2016-12-19,EXP - PURCHASE OF GOODS/SERVICES - AIR TRAVEL,Regulating our Future,REDFERN TRAVEL LTD,1011701666,234.13,CONSOLIDATED BUSINESS TRAVEL WEEK 50,BD1 5HQ,ADMIN
FOOD STANDARDS AGENCY - Westminster,FOOD STANDARDS AGENCY - Westminster,2016-12-13,EXP - PURCHASE OF GOODS/SERVICES - OTHER TRAVEL,Comms Directors Office,REDFERN TRAVEL LTD,1011701618,232.65,CONSOLIDATED BUSINESS TRAVEL WEEK 49,BD1 5HQ,ADMIN
FOOD STANDARDS AGENCY - Westminster,FOOD STANDARDS AGENCY - Westminster,2016-12-19,EXP - PURCHASE OF GOODS/SERVICES -  FOREIGN AIR TRAVEL,Regulatory & International,REDFERN TRAVEL LTD,1011701666,230.5,CONSOLIDATED BUSINESS TRAVEL WEEK 50,BD1 5HQ,ADMIN
FOOD STANDARDS AGENCY - Westminster,FOOD STANDARDS AGENCY - Westminster,2016-12-05,EXP - PURCHASE OF GOODS/SERVICES - SUBSISTENCE,Planning and Performance,REDFERN TRAVEL LTD,1011701539,230.05,CONSOLIDATED BUSINESS TRAVEL WEEK 44,BD1 5HQ,ADMIN
FOOD STANDARDS AGENCY - Westminster,FOOD STANDARDS AGENCY - Westminster,2016-12-19,EXP - PURCHASE OF GOODS/SERVICES -  FOREIGN AIR TRAVEL,Additives,REDFERN TRAVEL LTD,1011701666,229,CONSOLIDATED BUSINESS TRAVEL WEEK 50,BD1 5HQ,ADMIN
FOOD STANDARDS AGENCY - Westminster,FOOD STANDARDS AGENCY - Westminster,2016-12-13,EXP - PURCHASE OF GOODS/SERVICES - AIR TRAVEL,Organisational Development,REDFERN TRAVEL LTD,1011701618,227.74,CONSOLIDATED BUSINESS TRAVEL WEEK 49,BD1 5HQ,ADMIN
FOOD STANDARDS AGENCY - Westminster,FOOD STANDARDS AGENCY - Westminster,2016-12-13,EXP - PURCHASE OF GOODS/SERVICES - AIR TRAVEL,Animal Feed Branch,REDFERN TRAVEL LTD,1011701618,227.74,CONSOLIDATED BUSINESS TRAVEL WEEK 49,BD1 5HQ,ADMIN
FOOD STANDARDS AGENCY - Westminster,FOOD STANDARDS AGENCY - Westminster,2016-12-19,EXP - PURCHASE OF GOODS/SERVICES - RAIL TRAVEL,Food Crime Unit - Prog,REDFERN TRAVEL LTD,1011701666,227.1,CONSOLIDATED BUSINESS TRAVEL WEEK 50,BD1 5HQ,PROGRAMME
FOOD STANDARDS AGENCY - Westminster,FOOD STANDARDS AGENCY - Westminster,2016-12-19,EXP - PURCHASE OF GOODS/SERVICES - SUBSISTENCE,Additives,REDFERN TRAVEL LTD,1011701666,226.1,CONSOLIDATED BUSINESS TRAVEL WEEK 50,BD1 5HQ,ADMIN
FOOD STANDARDS AGENCY - Westminster,FOOD STANDARDS AGENCY - Westminster,2016-12-13,EXP - PURCHASE OF GOODS/SERVICES - RAIL TRAVEL,Analysis & Research Branch,REDFERN TRAVEL LTD,1011701618,222.2,CONSOLIDATED BUSINESS TRAVEL WEEK 49,BD1 5HQ,ADMIN
FOOD STANDARDS AGENCY - Westminster,FOOD STANDARDS AGENCY - Westminster,2016-12-05,EXP - PURCHASE OF GOODS/SERVICES - RAIL TRAVEL,Area 6 South East England - Cluster 62,REDFERN TRAVEL LTD,1011701539,213.9,CONSOLIDATED BUSINESS TRAVEL WEEK 44,BD1 5HQ,PROGRAMME
FOOD STANDARDS AGENCY - Westminster,FOOD STANDARDS AGENCY - Westminster,2016-12-05,EXP - PURCHASE OF GOODS/SERVICES - SUBSISTENCE,Procurement,REDFERN TRAVEL LTD,1011701539,213.2,CONSOLIDATED BUSINESS TRAVEL WEEK 44,BD1 5HQ,ADMIN
FOOD STANDARDS AGENCY - Westminster,FOOD STANDARDS AGENCY - Westminster,2016-12-19,EXP - PURCHASE OF GOODS/SERVICES - SUBSISTENCE,Food Crime Unit - Prog,REDFERN TRAVEL LTD,1011701666,211.32,CONSOLIDATED BUSINESS TRAVEL WEEK 50,BD1 5HQ,PROGRAMME
FOOD STANDARDS AGENCY - Westminster,FOOD STANDARDS AGENCY - Westminster,2016-12-13,EXP - PURCHASE OF GOODS/SERVICES - SUBSISTENCE,Regulating our Future,REDFERN TRAVEL LTD,1011701618,208.31,CONSOLIDATED BUSINESS TRAVEL WEEK 49,BD1 5HQ,ADMIN
FOOD STANDARDS AGENCY - Westminster,FOOD STANDARDS AGENCY - Westminster,2016-12-19,EXP - PURCHASE OF GOODS/SERVICES - RAIL TRAVEL,Area 3 North West England - Cluster 36,REDFERN TRAVEL LTD,1011701666,202.9,CONSOLIDATED BUSINESS TRAVEL WEEK 50,BD1 5HQ,PROGRAMME
FOOD STANDARDS AGENCY - Westminster,FOOD STANDARDS AGENCY - Westminster,2016-12-05,EXP - PURCHASE OF GOODS/SERVICES - RAIL TRAVEL,Chief Executive & Private Office,REDFERN TRAVEL LTD,1011701539,202.8,CONSOLIDATED BUSINESS TRAVEL WEEK 44,BD1 5HQ,ADMIN
FOOD STANDARDS AGENCY - Westminster,FOOD STANDARDS AGENCY - Westminster,2016-12-05,EXP - PURCHASE OF GOODS/SERVICES - RAIL TRAVEL,Regulatory & International,REDFERN TRAVEL LTD,1011701539,198,CONSOLIDATED BUSINESS TRAVEL WEEK 44,BD1 5HQ,ADMIN
FOOD STANDARDS AGENCY - Westminster,FOOD STANDARDS AGENCY - Westminster,2016-12-19,EXP - PURCHASE OF GOODS/SERVICES - RAIL TRAVEL,IT Information & Knowledge Management,REDFERN TRAVEL LTD,1011701666,197.8,CONSOLIDATED BUSINESS TRAVEL WEEK 50,BD1 5HQ,ADMIN
FOOD STANDARDS AGENCY - Westminster,FOOD STANDARDS AGENCY - Westminster,2016-12-05,EXP - PURCHASE OF GOODS/SERVICES - AIR TRAVEL,Food Crime Unit - Prog,REDFERN TRAVEL LTD,1011701539,195.64,CONSOLIDATED BUSINESS TRAVEL WEEK 44,BD1 5HQ,PROGRAMME
FOOD STANDARDS AGENCY - Westminster,FOOD STANDARDS AGENCY - Westminster,2016-12-13,EXP - PURCHASE OF GOODS/SERVICES -  FOREIGN AIR TRAVEL,Animal Feed Branch,REDFERN TRAVEL LTD,1011701618,194,CONSOLIDATED BUSINESS TRAVEL WEEK 49,BD1 5HQ,ADMIN
FOOD STANDARDS AGENCY - Westminster,FOOD STANDARDS AGENCY - Westminster,2016-12-19,EXP - PURCHASE OF GOODS/SERVICES - RAIL TRAVEL,Area 5 South West England - Cluster 54,REDFERN TRAVEL LTD,1011701666,193.85,CONSOLIDATED BUSINESS TRAVEL WEEK 50,BD1 5HQ,PROGRAMME
FOOD STANDARDS AGENCY - Westminster,FOOD STANDARDS AGENCY - Westminster,2016-12-13,EXP - PURCHASE OF GOODS/SERVICES - SUBSISTENCE,Area 5 South West England - Cluster 53,REDFERN TRAVEL LTD,1011701618,191.76,CONSOLIDATED BUSINESS TRAVEL WEEK 49,BD1 5HQ,PROGRAMME
FOOD STANDARDS AGENCY - Westminster,FOOD STANDARDS AGENCY - Westminster,2016-12-05,EXP - PURCHASE OF GOODS/SERVICES - AIR TRAVEL,Operations Assurance ,REDFERN TRAVEL LTD,1011701539,190.76,CONSOLIDATED BUSINESS TRAVEL WEEK 44,BD1 5HQ,PROGRAMME
FOOD STANDARDS AGENCY - Westminster,FOOD STANDARDS AGENCY - Westminster,2016-12-13,EXP - PURCHASE OF GOODS/SERVICES - RAIL TRAVEL,Chief Scientist,REDFERN TRAVEL LTD,1011701618,190.2,CONSOLIDATED BUSINESS TRAVEL WEEK 49,BD1 5HQ,ADMIN
FOOD STANDARDS AGENCY - Westminster,FOOD STANDARDS AGENCY - Westminster,2016-12-05,EXP - PURCHASE OF GOODS/SERVICES - RAIL TRAVEL,Area 4 North East England - Cluster 41,REDFERN TRAVEL LTD,1011701539,188.7,CONSOLIDATED BUSINESS TRAVEL WEEK 44,BD1 5HQ,PROGRAMME
FOOD STANDARDS AGENCY - Westminster,FOOD STANDARDS AGENCY - Westminster,2016-12-13,EXP - PURCHASE OF GOODS/SERVICES - TAXI SERVICES,Contaminants Policy & Strategy Unit,REDFERN TRAVEL LTD,1011701618,178.16,CONSOLIDATED BUSINESS TRAVEL WEEK 49,BD1 5HQ,ADMIN
FOOD STANDARDS AGENCY - Westminster,FOOD STANDARDS AGENCY - Westminster,2016-12-19,EXP - PURCHASE OF GOODS/SERVICES - OTHER ICT COSTS,IT Service Delivery,CAPITA SECURE INFORMATION SOLUTIONS LTD,1011701659,178,LONDON STORE CONSUMABLE BUFFER STOCK,SN14 0TW,ADMIN
FOOD STANDARDS AGENCY - Westminster,FOOD STANDARDS AGENCY - Westminster,2016-12-19,EXP - PURCHASE OF GOODS/SERVICES - AIR TRAVEL,Chief Scientist,REDFERN TRAVEL LTD,1011701666,177.98,CONSOLIDATED BUSINESS TRAVEL WEEK 50,BD1 5HQ,ADMIN
FOOD STANDARDS AGENCY - Westminster,FOOD STANDARDS AGENCY - Westminster,2016-12-13,EXP - PURCHASE OF GOODS/SERVICES -  FOREIGN AIR TRAVEL,Regulatory & International,REDFERN TRAVEL LTD,1011701618,175,CONSOLIDATED BUSINESS TRAVEL WEEK 49,BD1 5HQ,ADMIN
FOOD STANDARDS AGENCY - Westminster,FOOD STANDARDS AGENCY - Westminster,2016-12-13,EXP - PURCHASE OF GOODS/SERVICES - RAIL TRAVEL,Area 3 North West England - Cluster 36,REDFERN TRAVEL LTD,1011701618,174,CONSOLIDATED BUSINESS TRAVEL WEEK 49,BD1 5HQ,PROGRAMME
FOOD STANDARDS AGENCY - Westminster,FOOD STANDARDS AGENCY - Westminster,2016-12-19,EXP - PURCHASE OF GOODS/SERVICES -  FOREIGN AIR TRAVEL,Contaminants HoD,REDFERN TRAVEL LTD,1011701666,174,CONSOLIDATED BUSINESS TRAVEL WEEK 50,BD1 5HQ,ADMIN
FOOD STANDARDS AGENCY - Westminster,FOOD STANDARDS AGENCY - Westminster,2016-12-19,EXP - PURCHASE OF GOODS/SERVICES -  FOREIGN AIR TRAVEL,Allergens,REDFERN TRAVEL LTD,1011701666,174,CONSOLIDATED BUSINESS TRAVEL WEEK 50,BD1 5HQ,ADMIN
FOOD STANDARDS AGENCY - Westminster,FOOD STANDARDS AGENCY - Westminster,2016-12-13,EXP - PURCHASE OF GOODS/SERVICES - SUBSISTENCE,Comms Directors Office,REDFERN TRAVEL LTD,1011701618,165.55,CONSOLIDATED BUSINESS TRAVEL WEEK 49,BD1 5HQ,ADMIN
FOOD STANDARDS AGENCY - Westminster,FOOD STANDARDS AGENCY - Westminster,2016-12-19,EXP - PURCHASE OF GOODS/SERVICES - RAIL TRAVEL,Chief Executive & Private Office,REDFERN TRAVEL LTD,1011701666,165.5,CONSOLIDATED BUSINESS TRAVEL WEEK 50,BD1 5HQ,ADMIN
FOOD STANDARDS AGENCY - Westminster,FOOD STANDARDS AGENCY - Westminster,2016-12-13,EXP - PURCHASE OF GOODS/SERVICES - AIR TRAVEL,Additives,REDFERN TRAVEL LTD,1011701618,164,CONSOLIDATED BUSINESS TRAVEL WEEK 49,BD1 5HQ,ADMIN
FOOD STANDARDS AGENCY - Westminster,FOOD STANDARDS AGENCY - Westminster,2016-12-19,EXP - PURCHASE OF GOODS/SERVICES - RAIL TRAVEL,Area 2 Wales - Cluster 21,REDFERN TRAVEL LTD,1011701666,164,CONSOLIDATED BUSINESS TRAVEL WEEK 50,BD1 5HQ,PROGRAMME
FOOD STANDARDS AGENCY - Westminster,FOOD STANDARDS AGENCY - Westminster,2016-12-13,EXP - PURCHASE OF GOODS/SERVICES - SUBSISTENCE,Area 6 South East England - Cluster 65,REDFERN TRAVEL LTD,1011701618,162.6,CONSOLIDATED BUSINESS TRAVEL WEEK 49,BD1 5HQ,PROGRAMME
FOOD STANDARDS AGENCY - Westminster,FOOD STANDARDS AGENCY - Westminster,2016-12-19,EXP - PURCHASE OF GOODS/SERVICES - SUBSISTENCE,Area 5 South West England - Cluster 55,REDFERN TRAVEL LTD,1011701666,159.45,CONSOLIDATED BUSINESS TRAVEL WEEK 50,BD1 5HQ,PROGRAMME
FOOD STANDARDS AGENCY - Westminster,FOOD STANDARDS AGENCY - Westminster,2016-12-13,EXP - PURCHASE OF GOODS/SERVICES - RAIL TRAVEL,Legal Branch A & Investigations,REDFERN TRAVEL LTD,1011701618,158.2,CONSOLIDATED BUSINESS TRAVEL WEEK 49,BD1 5HQ,ADMIN
FOOD STANDARDS AGENCY - Westminster,FOOD STANDARDS AGENCY - Westminster,2016-12-05,EXP - PURCHASE OF GOODS/SERVICES - AIR TRAVEL,Comms Directors Office,REDFERN TRAVEL LTD,1011701539,156.63,CONSOLIDATED BUSINESS TRAVEL WEEK 44,BD1 5HQ,ADMIN
FOOD STANDARDS AGENCY - Westminster,FOOD STANDARDS AGENCY - Westminster,2016-12-13,EXP - PURCHASE OF GOODS/SERVICES - SUBSISTENCE,Area 3 North West England - Cluster 34,REDFERN TRAVEL LTD,1011701618,155.97,CONSOLIDATED BUSINESS TRAVEL WEEK 49,BD1 5HQ,PROGRAMME
FOOD STANDARDS AGENCY - Westminster,FOOD STANDARDS AGENCY - Westminster,2016-12-13,EXP - PURCHASE OF GOODS/SERVICES - RAIL TRAVEL,Organisational Development,REDFERN TRAVEL LTD,1011701618,155.5,CONSOLIDATED BUSINESS TRAVEL WEEK 49,BD1 5HQ,ADMIN
FOOD STANDARDS AGENCY - Westminster,FOOD STANDARDS AGENCY - Westminster,2016-12-13,EXP - PURCHASE OF GOODS/SERVICES - SUBSISTENCE,Area 3 North West England - Cluster 32,REDFERN TRAVEL LTD,1011701618,154.86,CONSOLIDATED BUSINESS TRAVEL WEEK 49,BD1 5HQ,PROGRAMME
FOOD STANDARDS AGENCY - Westminster,FOOD STANDARDS AGENCY - Westminster,2016-12-05,EXP - PURCHASE OF GOODS/SERVICES - SUBSISTENCE,Area 5 South West England - Cluster 53,REDFERN TRAVEL LTD,1011701539,154.6,CONSOLIDATED BUSINESS TRAVEL WEEK 44,BD1 5HQ,PROGRAMME
FOOD STANDARDS AGENCY - Westminster,FOOD STANDARDS AGENCY - Westminster,2016-12-13,EXP - PURCHASE OF GOODS/SERVICES - SUBSISTENCE,Area 6 South East England - Cluster 62,REDFERN TRAVEL LTD,1011701618,154.2,CONSOLIDATED BUSINESS TRAVEL WEEK 49,BD1 5HQ,PROGRAMME
FOOD STANDARDS AGENCY - Westminster,FOOD STANDARDS AGENCY - Westminster,2016-12-14,EXP - PURCHASE OF GOODS/SERVICES - OTHER - CARRIAGE OF SAMPLES,Operational Delivery,TOPSPEED COURIERS LIMITED,1011701631,150,EBL X 3,WA16 8XN,PROGRAMME
FOOD STANDARDS AGENCY - Westminster,FOOD STANDARDS AGENCY - Westminster,2016-12-13,EXP - PURCHASE OF GOODS/SERVICES - SUBSISTENCE,Planning and Performance,REDFERN TRAVEL LTD,1011701618,145.82,CONSOLIDATED BUSINESS TRAVEL WEEK 49,BD1 5HQ,ADMIN
FOOD STANDARDS AGENCY - Westminster,FOOD STANDARDS AGENCY - Westminster,2016-12-19,EXP - PURCHASE OF GOODS/SERVICES - FOREIGN SUBSISTENCE,Chief Scientist,REDFERN TRAVEL LTD,1011701666,145.62,CONSOLIDATED BUSINESS TRAVEL WEEK 50,BD1 5HQ,ADMIN
FOOD STANDARDS AGENCY - Westminster,FOOD STANDARDS AGENCY - Westminster,2016-12-19,EXP - PURCHASE OF GOODS/SERVICES - FOREIGN SUBSISTENCE,Regulatory & International,REDFERN TRAVEL LTD,1011701666,145.62,CONSOLIDATED BUSINESS TRAVEL WEEK 50,BD1 5HQ,ADMIN
FOOD STANDARDS AGENCY - Westminster,FOOD STANDARDS AGENCY - Westminster,2016-12-13,EXP - PURCHASE OF GOODS/SERVICES - FOREIGN SUBSISTENCE,Chemical Risk Assessment Unit,REDFERN TRAVEL LTD,1011701618,143.14,CONSOLIDATED BUSINESS TRAVEL WEEK 49,BD1 5HQ,ADMIN
FOOD STANDARDS AGENCY - Westminster,FOOD STANDARDS AGENCY - Westminster,2016-12-13,EXP - PURCHASE OF GOODS/SERVICES - SUBSISTENCE,Area 3 North West England - Cluster 31,REDFERN TRAVEL LTD,1011701618,140.82,CONSOLIDATED BUSINESS TRAVEL WEEK 49,BD1 5HQ,PROGRAMME
FOOD STANDARDS AGENCY - Westminster,FOOD STANDARDS AGENCY - Westminster,2016-12-05,EXP - PURCHASE OF GOODS/SERVICES - SUBSISTENCE,Area 3 North West England - Cluster 36,REDFERN TRAVEL LTD,1011701539,139.2,CONSOLIDATED BUSINESS TRAVEL WEEK 44,BD1 5HQ,PROGRAMME
FOOD STANDARDS AGENCY - Westminster,FOOD STANDARDS AGENCY - Westminster,2016-12-05,EXP - PURCHASE OF GOODS/SERVICES - RAIL TRAVEL,Area 6 South East England - Cluster 61,REDFERN TRAVEL LTD,1011701539,139,CONSOLIDATED BUSINESS TRAVEL WEEK 44,BD1 5HQ,PROGRAMME
FOOD STANDARDS AGENCY - Westminster,FOOD STANDARDS AGENCY - Westminster,2016-12-19,EXP - PURCHASE OF GOODS/SERVICES - RAIL TRAVEL,Area 5 South West England - Cluster 57,REDFERN TRAVEL LTD,1011701666,138.5,CONSOLIDATED BUSINESS TRAVEL WEEK 50,BD1 5HQ,PROGRAMME
FOOD STANDARDS AGENCY - Westminster,FOOD STANDARDS AGENCY - Westminster,2016-12-13,EXP - PURCHASE OF GOODS/SERVICES - SUBSISTENCE,IT Service Delivery,REDFERN TRAVEL LTD,1011701618,137.01,CONSOLIDATED BUSINESS TRAVEL WEEK 49,BD1 5HQ,ADMIN
FOOD STANDARDS AGENCY - Westminster,FOOD STANDARDS AGENCY - Westminster,2016-12-13,EXP - PURCHASE OF GOODS/SERVICES - FOREIGN SUBSISTENCE,Imports & Exports Team (Admin),REDFERN TRAVEL LTD,1011701618,135.52,CONSOLIDATED BUSINESS TRAVEL WEEK 49,BD1 5HQ,ADMIN
FOOD STANDARDS AGENCY - Westminster,FOOD STANDARDS AGENCY - Westminster,2016-12-13,EXP - PURCHASE OF GOODS/SERVICES - SUBSISTENCE,Imports & Exports Team (Admin),REDFERN TRAVEL LTD,1011701618,133.2,CONSOLIDATED BUSINESS TRAVEL WEEK 49,BD1 5HQ,ADMIN
FOOD STANDARDS AGENCY - Westminster,FOOD STANDARDS AGENCY - Westminster,2016-12-19,EXP - PURCHASE OF GOODS/SERVICES -  FOREIGN AIR TRAVEL,EU Regulatory Reform Branch,REDFERN TRAVEL LTD,1011701666,133,CONSOLIDATED BUSINESS TRAVEL WEEK 50,BD1 5HQ,ADMIN
FOOD STANDARDS AGENCY - Westminster,FOOD STANDARDS AGENCY - Westminster,2016-12-13,EXP - PURCHASE OF GOODS/SERVICES - RAIL TRAVEL,Food Crime Unit - Admin,REDFERN TRAVEL LTD,1011701618,131.8,CONSOLIDATED BUSINESS TRAVEL WEEK 49,BD1 5HQ,ADMIN
FOOD STANDARDS AGENCY - Westminster,FOOD STANDARDS AGENCY - Westminster,2016-12-19,EXP - PURCHASE OF GOODS/SERVICES - RAIL TRAVEL,Area 5 South West England - Cluster 55,REDFERN TRAVEL LTD,1011701666,130.2,CONSOLIDATED BUSINESS TRAVEL WEEK 50,BD1 5HQ,PROGRAMME
FOOD STANDARDS AGENCY - Westminster,FOOD STANDARDS AGENCY - Westminster,2016-12-13,EXP - PURCHASE OF GOODS/SERVICES - SUBSISTENCE,Area 4 North East England - Cluster 41,REDFERN TRAVEL LTD,1011701618,129.04,CONSOLIDATED BUSINESS TRAVEL WEEK 49,BD1 5HQ,PROGRAMME
FOOD STANDARDS AGENCY - Westminster,FOOD STANDARDS AGENCY - Westminster,2016-12-13,EXP - PURCHASE OF GOODS/SERVICES - RAIL TRAVEL,Area 6 South East England - Cluster 62,REDFERN TRAVEL LTD,1011701618,129,CONSOLIDATED BUSINESS TRAVEL WEEK 49,BD1 5HQ,PROGRAMME
FOOD STANDARDS AGENCY - Westminster,FOOD STANDARDS AGENCY - Westminster,2016-12-19,EXP - PURCHASE OF GOODS/SERVICES - TELECOMS - TELEPHONE,IT Service Delivery,CAPITA SECURE INFORMATION SOLUTIONS LTD,1011701659,126.13,NEW BROADBAND IANSTALLATION PLANT,SN14 0TW,ADMIN
FOOD STANDARDS AGENCY - Westminster,FOOD STANDARDS AGENCY - Westminster,2016-12-05,EXP - PURCHASE OF GOODS/SERVICES - RAIL TRAVEL,Regulating our Future,REDFERN TRAVEL LTD,1011701539,124.5,CONSOLIDATED BUSINESS TRAVEL WEEK 44,BD1 5HQ,ADMIN
FOOD STANDARDS AGENCY - Westminster,FOOD STANDARDS AGENCY - Westminster,2016-12-13,EXP - PURCHASE OF GOODS/SERVICES - RAIL TRAVEL,Procurement,REDFERN TRAVEL LTD,1011701618,123.7,CONSOLIDATED BUSINESS TRAVEL WEEK 49,BD1 5HQ,ADMIN
FOOD STANDARDS AGENCY - Westminster,FOOD STANDARDS AGENCY - Westminster,2016-12-19,EXP - PURCHASE OF GOODS/SERVICES - RAIL TRAVEL,Resilience - Admin,REDFERN TRAVEL LTD,1011701666,123,CONSOLIDATED BUSINESS TRAVEL WEEK 50,BD1 5HQ,ADMIN
FOOD STANDARDS AGENCY - Westminster,FOOD STANDARDS AGENCY - Westminster,2016-12-13,EXP - PURCHASE OF GOODS/SERVICES - RAIL TRAVEL,Area 6 South East England - Cluster 63,REDFERN TRAVEL LTD,1011701618,119.7,CONSOLIDATED BUSINESS TRAVEL WEEK 49,BD1 5HQ,PROGRAMME
FOOD STANDARDS AGENCY - Westminster,FOOD STANDARDS AGENCY - Westminster,2016-12-19,EXP - PURCHASE OF GOODS/SERVICES - OTHER ICT COSTS,IT Service Delivery,CAPITA SECURE INFORMATION SOLUTIONS LTD,1011701659,119,YORK STORE CONSUMABLE BUFFER STOCK,SN14 0TW,ADMIN
FOOD STANDARDS AGENCY - Westminster,FOOD STANDARDS AGENCY - Westminster,2016-12-19,EXP - PURCHASE OF GOODS/SERVICES - OTHER ICT COSTS,IT Service Delivery,CAPITA SECURE INFORMATION SOLUTIONS LTD,1011701659,119,LONDON STORE CONSUMABLE BUFFER STOCK,SN14 0TW,ADMIN
FOOD STANDARDS AGENCY - Westminster,FOOD STANDARDS AGENCY - Westminster,2016-12-13,EXP - PURCHASE OF GOODS/SERVICES - FOREIGN SUBSISTENCE,Additives,REDFERN TRAVEL LTD,1011701618,118.98,CONSOLIDATED BUSINESS TRAVEL WEEK 49,BD1 5HQ,ADMIN
FOOD STANDARDS AGENCY - Westminster,FOOD STANDARDS AGENCY - Westminster,2016-12-19,EXP - PURCHASE OF GOODS/SERVICES - SUBSISTENCE,Chemical Risk Assessment Unit,REDFERN TRAVEL LTD,1011701666,116.58,CONSOLIDATED BUSINESS TRAVEL WEEK 50,BD1 5HQ,ADMIN
FOOD STANDARDS AGENCY - Westminster,FOOD STANDARDS AGENCY - Westminster,2016-12-19,EXP - PURCHASE OF GOODS/SERVICES - TELECOMS - TELEPHONE,IT Service Delivery,CAPITA SECURE INFORMATION SOLUTIONS LTD,1011701659,113.13,NEW BROADBAND IANSTALLATION PLANT,SN14 0TW,ADMIN
FOOD STANDARDS AGENCY - Westminster,FOOD STANDARDS AGENCY - Westminster,2016-12-19,EXP - PURCHASE OF GOODS/SERVICES - RAIL TRAVEL,Area 2 Wales - Cluster 23,REDFERN TRAVEL LTD,1011701666,111.6,CONSOLIDATED BUSINESS TRAVEL WEEK 50,BD1 5HQ,PROGRAMME
FOOD STANDARDS AGENCY - Westminster,FOOD STANDARDS AGENCY - Westminster,2016-12-05,EXP - PURCHASE OF GOODS/SERVICES - RAIL TRAVEL,Area 4 North East England - Cluster 48,REDFERN TRAVEL LTD,1011701539,110.5,CONSOLIDATED BUSINESS TRAVEL WEEK 44,BD1 5HQ,PROGRAMME
FOOD STANDARDS AGENCY - Westminster,FOOD STANDARDS AGENCY - Westminster,2016-12-13,EXP - PURCHASE OF GOODS/SERVICES - SUBSISTENCE,Finance Director & Branch,REDFERN TRAVEL LTD,1011701618,109.23,CONSOLIDATED BUSINESS TRAVEL WEEK 49,BD1 5HQ,ADMIN
FOOD STANDARDS AGENCY - Westminster,FOOD STANDARDS AGENCY - Westminster,2016-12-13,EXP - PURCHASE OF GOODS/SERVICES - SUBSISTENCE,Organisational Development,REDFERN TRAVEL LTD,1011701618,109.23,CONSOLIDATED BUSINESS TRAVEL WEEK 49,BD1 5HQ,ADMIN
FOOD STANDARDS AGENCY - Westminster,FOOD STANDARDS AGENCY - Westminster,2016-12-05,EXP - PURCHASE OF GOODS/SERVICES - RAIL TRAVEL,Area 3 North West England - Cluster 36,REDFERN TRAVEL LTD,1011701539,108.8,CONSOLIDATED BUSINESS TRAVEL WEEK 44,BD1 5HQ,PROGRAMME
FOOD STANDARDS AGENCY - Westminster,FOOD STANDARDS AGENCY - Westminster,2016-12-13,EXP - PURCHASE OF GOODS/SERVICES - SUBSISTENCE,Area 5 South West England - Cluster 51,REDFERN TRAVEL LTD,1011701618,108.6,CONSOLIDATED BUSINESS TRAVEL WEEK 49,BD1 5HQ,PROGRAMME
FOOD STANDARDS AGENCY - Westminster,FOOD STANDARDS AGENCY - Westminster,2016-12-13,EXP - PURCHASE OF GOODS/SERVICES - RAIL TRAVEL,Area 5 South West England - Cluster 51,REDFERN TRAVEL LTD,1011701618,107.9,CONSOLIDATED BUSINESS TRAVEL WEEK 49,BD1 5HQ,PROGRAMME
FOOD STANDARDS AGENCY - Westminster,FOOD STANDARDS AGENCY - Westminster,2016-12-19,EXP - PURCHASE OF GOODS/SERVICES - RAIL TRAVEL,Area 1 Scotland - Cluster 14,REDFERN TRAVEL LTD,1011701666,107.5,CONSOLIDATED BUSINESS TRAVEL WEEK 50,BD1 5HQ,PROGRAMME
FOOD STANDARDS AGENCY - Westminster,FOOD STANDARDS AGENCY - Westminster,2016-12-05,EXP - PURCHASE OF GOODS/SERVICES - RAIL TRAVEL,Area 3 North West England - Cluster 32,REDFERN TRAVEL LTD,1011701539,106.7,CONSOLIDATED BUSINESS TRAVEL WEEK 44,BD1 5HQ,PROGRAMME
FOOD STANDARDS AGENCY - Westminster,FOOD STANDARDS AGENCY - Westminster,2016-12-13,EXP - PURCHASE OF GOODS/SERVICES - SUBSISTENCE,IT Information & Knowledge Management,REDFERN TRAVEL LTD,1011701618,105.6,CONSOLIDATED BUSINESS TRAVEL WEEK 49,BD1 5HQ,ADMIN
FOOD STANDARDS AGENCY - Westminster,FOOD STANDARDS AGENCY - Westminster,2016-12-19,EXP - PURCHASE OF GOODS/SERVICES - RAIL TRAVEL,Security & Estates,REDFERN TRAVEL LTD,1011701666,104.25,CONSOLIDATED BUSINESS TRAVEL WEEK 50,BD1 5HQ,ADMIN
FOOD STANDARDS AGENCY - Westminster,FOOD STANDARDS AGENCY - Westminster,2016-12-05,EXP - PURCHASE OF GOODS/SERVICES - SUBSISTENCE,Area 6 South East England - Cluster 62,REDFERN TRAVEL LTD,1011701539,103.6,CONSOLIDATED BUSINESS TRAVEL WEEK 44,BD1 5HQ,PROGRAMME
FOOD STANDARDS AGENCY - Westminster,FOOD STANDARDS AGENCY - Westminster,2016-12-05,EXP - PURCHASE OF GOODS/SERVICES - SUBSISTENCE,Regulatory Delivery ,REDFERN TRAVEL LTD,1011701539,103.52,CONSOLIDATED BUSINESS TRAVEL WEEK 44,BD1 5HQ,ADMIN
FOOD STANDARDS AGENCY - Westminster,FOOD STANDARDS AGENCY - Westminster,2016-12-13,EXP - PURCHASE OF GOODS/SERVICES - SUBSISTENCE,Area 5 South West England - Cluster 52,REDFERN TRAVEL LTD,1011701618,101.82,CONSOLIDATED BUSINESS TRAVEL WEEK 49,BD1 5HQ,PROGRAMME
FOOD STANDARDS AGENCY - Westminster,FOOD STANDARDS AGENCY - Westminster,2016-12-13,EXP - PURCHASE OF GOODS/SERVICES - SUBSISTENCE,Procurement,REDFERN TRAVEL LTD,1011701618,101.28,CONSOLIDATED BUSINESS TRAVEL WEEK 49,BD1 5HQ,ADMIN
FOOD STANDARDS AGENCY - Westminster,FOOD STANDARDS AGENCY - Westminster,2016-12-14,EXP - PURCHASE OF GOODS/SERVICES -OTHER PROF SERV - LEGAL DEBT RECOVERY COSTS,Finance Director & Branch,FLINT BISHOP LLP,1011701635,100,COUNSEL FEES INV 52021,DE1 3HQ,ADMIN
FOOD STANDARDS AGENCY - Westminster,FOOD STANDARDS AGENCY - Westminster,2016-12-05,EXP - PURCHASE OF GOODS/SERVICES - RAIL TRAVEL,Food Crime Unit - Admin,REDFERN TRAVEL LTD,1011701539,100,CONSOLIDATED BUSINESS TRAVEL WEEK 44,BD1 5HQ,ADMIN
FOOD STANDARDS AGENCY - Westminster,FOOD STANDARDS AGENCY - Westminster,2016-12-13,EXP - PURCHASE OF GOODS/SERVICES - SUBSISTENCE,Area 5 South West England - Cluster 56,REDFERN TRAVEL LTD,1011701618,99.6,CONSOLIDATED BUSINESS TRAVEL WEEK 49,BD1 5HQ,PROGRAMME
FOOD STANDARDS AGENCY - Westminster,FOOD STANDARDS AGENCY - Westminster,2016-12-19,EXP - PURCHASE OF GOODS/SERVICES - SUBSISTENCE,Area 6 South East England - Cluster 63,REDFERN TRAVEL LTD,1011701666,99.6,CONSOLIDATED BUSINESS TRAVEL WEEK 50,BD1 5HQ,PROGRAMME
FOOD STANDARDS AGENCY - Westminster,FOOD STANDARDS AGENCY - Westminster,2016-12-19,EXP - PURCHASE OF GOODS/SERVICES - SUBSISTENCE,Contaminants HoD,REDFERN TRAVEL LTD,1011701666,99.6,CONSOLIDATED BUSINESS TRAVEL WEEK 50,BD1 5HQ,ADMIN
FOOD STANDARDS AGENCY - Westminster,FOOD STANDARDS AGENCY - Westminster,2016-12-19,EXP - PURCHASE OF GOODS/SERVICES - RAIL TRAVEL,Internal Audit,REDFERN TRAVEL LTD,1011701666,98.6,CONSOLIDATED BUSINESS TRAVEL WEEK 50,BD1 5HQ,ADMIN
FOOD STANDARDS AGENCY - Westminster,FOOD STANDARDS AGENCY - Westminster,2016-12-05,EXP - PURCHASE OF GOODS/SERVICES - SUBSISTENCE,Area 5 South West England - Cluster 57,REDFERN TRAVEL LTD,1011701539,98.6,CONSOLIDATED BUSINESS TRAVEL WEEK 44,BD1 5HQ,PROGRAMME
FOOD STANDARDS AGENCY - Westminster,FOOD STANDARDS AGENCY - Westminster,2016-12-05,EXP - PURCHASE OF GOODS/SERVICES - RAIL TRAVEL,Area 5 South West England - Cluster 53,REDFERN TRAVEL LTD,1011701539,96.8,CONSOLIDATED BUSINESS TRAVEL WEEK 44,BD1 5HQ,PROGRAMME
FOOD STANDARDS AGENCY - Westminster,FOOD STANDARDS AGENCY - Westminster,2016-12-13,EXP - PURCHASE OF GOODS/SERVICES - AIR TRAVEL,Contaminants HoD,REDFERN TRAVEL LTD,1011701618,94.96,CONSOLIDATED BUSINESS TRAVEL WEEK 49,BD1 5HQ,ADMIN
FOOD STANDARDS AGENCY - Westminster,FOOD STANDARDS AGENCY - Westminster,2016-12-05,EXP - PURCHASE OF GOODS/SERVICES - RAIL TRAVEL,Organisational Development,REDFERN TRAVEL LTD,1011701539,94.65,CONSOLIDATED BUSINESS TRAVEL WEEK 44,BD1 5HQ,ADMIN
FOOD STANDARDS AGENCY - Westminster,FOOD STANDARDS AGENCY - Westminster,2016-12-19,EXP - PURCHASE OF GOODS/SERVICES - RAIL TRAVEL,Scientific Methods & Laboratory Policy,REDFERN TRAVEL LTD,1011701666,94.5,CONSOLIDATED BUSINESS TRAVEL WEEK 50,BD1 5HQ,ADMIN
FOOD STANDARDS AGENCY - Westminster,FOOD STANDARDS AGENCY - Westminster,2016-12-19,EXP - PURCHASE OF GOODS/SERVICES - OTHER ICT COSTS,IT Service Delivery,CAPITA SECURE INFORMATION SOLUTIONS LTD,1011701659,94,YORK STORE CONSUMABLE BUFFER STOCK,SN14 0TW,ADMIN
FOOD STANDARDS AGENCY - Westminster,FOOD STANDARDS AGENCY - Westminster,2016-12-19,EXP - PURCHASE OF GOODS/SERVICES - OTHER ICT COSTS,IT Service Delivery,CAPITA SECURE INFORMATION SOLUTIONS LTD,1011701659,94,LONDON STORE CONSUMABLE BUFFER STOCK,SN14 0TW,ADMIN
FOOD STANDARDS AGENCY - Westminster,FOOD STANDARDS AGENCY - Westminster,2016-12-05,EXP - PURCHASE OF GOODS/SERVICES - RAIL TRAVEL,Contaminants HoD,REDFERN TRAVEL LTD,1011701539,92.15,CONSOLIDATED BUSINESS TRAVEL WEEK 44,BD1 5HQ,ADMIN
FOOD STANDARDS AGENCY - Westminster,FOOD STANDARDS AGENCY - Westminster,2016-12-19,EXP - PURCHASE OF GOODS/SERVICES - SUBSISTENCE,Animal Feed Branch,REDFERN TRAVEL LTD,1011701666,89.6,CONSOLIDATED BUSINESS TRAVEL WEEK 50,BD1 5HQ,ADMIN
FOOD STANDARDS AGENCY - Westminster,FOOD STANDARDS AGENCY - Westminster,2016-12-19,EXP - PURCHASE OF GOODS/SERVICES - SUBSISTENCE,Imports & Exports Team (Admin),REDFERN TRAVEL LTD,1011701666,89.6,CONSOLIDATED BUSINESS TRAVEL WEEK 50,BD1 5HQ,ADMIN
FOOD STANDARDS AGENCY - Westminster,FOOD STANDARDS AGENCY - Westminster,2016-12-05,EXP - PURCHASE OF GOODS/SERVICES - SUBSISTENCE,Area 5 South West England - Cluster 56,REDFERN TRAVEL LTD,1011701539,87.6,CONSOLIDATED BUSINESS TRAVEL WEEK 44,BD1 5HQ,PROGRAMME
FOOD STANDARDS AGENCY - Westminster,FOOD STANDARDS AGENCY - Westminster,2016-12-19,EXP - PURCHASE OF GOODS/SERVICES - SUBSISTENCE,Area 6 South East England - Cluster 64,REDFERN TRAVEL LTD,1011701666,86.33,CONSOLIDATED BUSINESS TRAVEL WEEK 50,BD1 5HQ,PROGRAMME
FOOD STANDARDS AGENCY - Westminster,FOOD STANDARDS AGENCY - Westminster,2016-12-13,EXP - PURCHASE OF GOODS/SERVICES - TAXI SERVICES,Food Hygiene Policy Branch,REDFERN TRAVEL LTD,1011701618,82.69,CONSOLIDATED BUSINESS TRAVEL WEEK 49,BD1 5HQ,ADMIN
FOOD STANDARDS AGENCY - Westminster,FOOD STANDARDS AGENCY - Westminster,2016-12-19,EXP - PURCHASE OF GOODS/SERVICES - SUBSISTENCE,IT Information & Knowledge Management,REDFERN TRAVEL LTD,1011701666,82.44,CONSOLIDATED BUSINESS TRAVEL WEEK 50,BD1 5HQ,ADMIN
FOOD STANDARDS AGENCY - Westminster,FOOD STANDARDS AGENCY - Westminster,2016-12-19,EXP - PURCHASE OF GOODS/SERVICES - OTHER ICT COSTS,IT Service Delivery,CAPITA SECURE INFORMATION SOLUTIONS LTD,1011701659,80.7,YORK STORE CONSUMABLE BUFFER STOCK,SN14 0TW,ADMIN
FOOD STANDARDS AGENCY - Westminster,FOOD STANDARDS AGENCY - Westminster,2016-12-19,EXP - PURCHASE OF GOODS/SERVICES - OTHER ICT COSTS,IT Service Delivery,CAPITA SECURE INFORMATION SOLUTIONS LTD,1011701659,80.7,LONDON STORE CONSUMABLE BUFFER STOCK,SN14 0TW,ADMIN
FOOD STANDARDS AGENCY - Westminster,FOOD STANDARDS AGENCY - Westminster,2016-12-19,EXP - PURCHASE OF GOODS/SERVICES - SUBSISTENCE,Planning and Performance,REDFERN TRAVEL LTD,1011701666,78.6,CONSOLIDATED BUSINESS TRAVEL WEEK 50,BD1 5HQ,ADMIN
FOOD STANDARDS AGENCY - Westminster,FOOD STANDARDS AGENCY - Westminster,2016-12-19,EXP - PURCHASE OF GOODS/SERVICES - RAIL TRAVEL,Contaminants Policy & Strategy Unit,REDFERN TRAVEL LTD,1011701666,78.5,CONSOLIDATED BUSINESS TRAVEL WEEK 50,BD1 5HQ,ADMIN
FOOD STANDARDS AGENCY - Westminster,FOOD STANDARDS AGENCY - Westminster,2016-12-05,EXP - PURCHASE OF GOODS/SERVICES - RAIL TRAVEL,Area 3 North West England - Cluster 34,REDFERN TRAVEL LTD,1011701539,75.65,CONSOLIDATED BUSINESS TRAVEL WEEK 44,BD1 5HQ,PROGRAMME
FOOD STANDARDS AGENCY - Westminster,FOOD STANDARDS AGENCY - Westminster,2016-12-19,EXP - PURCHASE OF GOODS/SERVICES - SUBSISTENCE,Area 5 South West England - Cluster 56,REDFERN TRAVEL LTD,1011701666,75.6,CONSOLIDATED BUSINESS TRAVEL WEEK 50,BD1 5HQ,PROGRAMME
FOOD STANDARDS AGENCY - Westminster,FOOD STANDARDS AGENCY - Westminster,2016-12-19,EXP - PURCHASE OF GOODS/SERVICES - SUBSISTENCE,Area 5 South West England - Cluster 52,REDFERN TRAVEL LTD,1011701666,74.64,CONSOLIDATED BUSINESS TRAVEL WEEK 50,BD1 5HQ,PROGRAMME
FOOD STANDARDS AGENCY - Westminster,FOOD STANDARDS AGENCY - Westminster,2016-12-19,EXP - PURCHASE OF GOODS/SERVICES - SUBSISTENCE,Non Meat Field Ops,REDFERN TRAVEL LTD,1011701666,73.32,CONSOLIDATED BUSINESS TRAVEL WEEK 50,BD1 5HQ,PROGRAMME
FOOD STANDARDS AGENCY - Westminster,FOOD STANDARDS AGENCY - Westminster,2016-12-19,EXP - PURCHASE OF GOODS/SERVICES - RAIL TRAVEL,Area 4 North East England - Cluster 44,REDFERN TRAVEL LTD,1011701666,72.4,CONSOLIDATED BUSINESS TRAVEL WEEK 50,BD1 5HQ,PROGRAMME
FOOD STANDARDS AGENCY - Westminster,FOOD STANDARDS AGENCY - Westminster,2016-12-05,EXP - PURCHASE OF GOODS/SERVICES - RAIL TRAVEL,Area 3 North West England - Cluster 35,REDFERN TRAVEL LTD,1011701539,71.1,CONSOLIDATED BUSINESS TRAVEL WEEK 44,BD1 5HQ,PROGRAMME
FOOD STANDARDS AGENCY - Westminster,FOOD STANDARDS AGENCY - Westminster,2016-12-05,EXP - PURCHASE OF GOODS/SERVICES - SUBSISTENCE,Area 6 South East England - Cluster 63,REDFERN TRAVEL LTD,1011701539,70.1,CONSOLIDATED BUSINESS TRAVEL WEEK 44,BD1 5HQ,PROGRAMME
FOOD STANDARDS AGENCY - Westminster,FOOD STANDARDS AGENCY - Westminster,2016-12-05,EXP - PURCHASE OF GOODS/SERVICES - RAIL TRAVEL,EU Regulatory Reform Branch,REDFERN TRAVEL LTD,1011701539,70,CONSOLIDATED BUSINESS TRAVEL WEEK 44,BD1 5HQ,ADMIN
FOOD STANDARDS AGENCY - Westminster,FOOD STANDARDS AGENCY - Westminster,2016-12-13,EXP - PURCHASE OF GOODS/SERVICES - SUBSISTENCE,Area 5 South West England - Cluster 57,REDFERN TRAVEL LTD,1011701618,68.1,CONSOLIDATED BUSINESS TRAVEL WEEK 49,BD1 5HQ,PROGRAMME
FOOD STANDARDS AGENCY - Westminster,FOOD STANDARDS AGENCY - Westminster,2016-12-13,EXP - PURCHASE OF GOODS/SERVICES - SUBSISTENCE,Non Meat Field Ops,REDFERN TRAVEL LTD,1011701618,68.06,CONSOLIDATED BUSINESS TRAVEL WEEK 49,BD1 5HQ,PROGRAMME
FOOD STANDARDS AGENCY - Westminster,FOOD STANDARDS AGENCY - Westminster,2016-12-05,EXP - PURCHASE OF GOODS/SERVICES - RAIL TRAVEL,Legal Branch A & Investigations,REDFERN TRAVEL LTD,1011701539,66,CONSOLIDATED BUSINESS TRAVEL WEEK 44,BD1 5HQ,ADMIN
FOOD STANDARDS AGENCY - Westminster,FOOD STANDARDS AGENCY - Westminster,2016-12-13,EXP - PURCHASE OF GOODS/SERVICES - TAXI SERVICES,Chair & Deputy Chair,REDFERN TRAVEL LTD,1011701618,65.48,CONSOLIDATED BUSINESS TRAVEL WEEK 49,BD1 5HQ,ADMIN
FOOD STANDARDS AGENCY - Westminster,FOOD STANDARDS AGENCY - Westminster,2016-12-19,EXP - PURCHASE OF GOODS/SERVICES - TAXI SERVICES,Operational Delivery,REDFERN TRAVEL LTD,1011701666,65.18,CONSOLIDATED BUSINESS TRAVEL WEEK 50,BD1 5HQ,PROGRAMME
FOOD STANDARDS AGENCY - Westminster,FOOD STANDARDS AGENCY - Westminster,2016-12-05,EXP - PURCHASE OF GOODS/SERVICES - SUBSISTENCE,Area 2 Wales - Cluster 23,REDFERN TRAVEL LTD,1011701539,61.85,CONSOLIDATED BUSINESS TRAVEL WEEK 44,BD1 5HQ,PROGRAMME
FOOD STANDARDS AGENCY - Westminster,FOOD STANDARDS AGENCY - Westminster,2016-12-19,EXP - PURCHASE OF GOODS/SERVICES - SUBSISTENCE,Area 2 Wales - Cluster 21,REDFERN TRAVEL LTD,1011701666,60.93,CONSOLIDATED BUSINESS TRAVEL WEEK 50,BD1 5HQ,PROGRAMME
FOOD STANDARDS AGENCY - Westminster,FOOD STANDARDS AGENCY - Westminster,2016-12-19,EXP - PURCHASE OF GOODS/SERVICES - RAIL TRAVEL,Area 3 North West England - Cluster 35,REDFERN TRAVEL LTD,1011701666,60.4,CONSOLIDATED BUSINESS TRAVEL WEEK 50,BD1 5HQ,PROGRAMME
FOOD STANDARDS AGENCY - Westminster,FOOD STANDARDS AGENCY - Westminster,2016-12-13,EXP - PURCHASE OF GOODS/SERVICES - RAIL TRAVEL,Area 1 Scotland - Cluster 14,REDFERN TRAVEL LTD,1011701618,58.2,CONSOLIDATED BUSINESS TRAVEL WEEK 49,BD1 5HQ,PROGRAMME
FOOD STANDARDS AGENCY - Westminster,FOOD STANDARDS AGENCY - Westminster,2016-12-13,EXP - PURCHASE OF GOODS/SERVICES - RAIL TRAVEL,Area 2 Wales - Cluster 21,REDFERN TRAVEL LTD,1011701618,58.1,CONSOLIDATED BUSINESS TRAVEL WEEK 49,BD1 5HQ,PROGRAMME
FOOD STANDARDS AGENCY - Westminster,FOOD STANDARDS AGENCY - Westminster,2016-12-05,EXP - PURCHASE OF GOODS/SERVICES - SUBSISTENCE,Non Meat Field Ops,REDFERN TRAVEL LTD,1011701539,57.24,CONSOLIDATED BUSINESS TRAVEL WEEK 44,BD1 5HQ,PROGRAMME
FOOD STANDARDS AGENCY - Westminster,FOOD STANDARDS AGENCY - Westminster,2016-12-05,EXP - PURCHASE OF GOODS/SERVICES - RAIL TRAVEL,Area 5 South West England - Cluster 57,REDFERN TRAVEL LTD,1011701539,55,CONSOLIDATED BUSINESS TRAVEL WEEK 44,BD1 5HQ,PROGRAMME
FOOD STANDARDS AGENCY - Westminster,FOOD STANDARDS AGENCY - Westminster,2016-12-13,EXP - PURCHASE OF GOODS/SERVICES - TAXI SERVICES,Chief Scientist,REDFERN TRAVEL LTD,1011701618,54.76,CONSOLIDATED BUSINESS TRAVEL WEEK 49,BD1 5HQ,ADMIN
FOOD STANDARDS AGENCY - Westminster,FOOD STANDARDS AGENCY - Westminster,2016-12-13,EXP - PURCHASE OF GOODS/SERVICES - RAIL TRAVEL,Area 3 North West England - Cluster 35,REDFERN TRAVEL LTD,1011701618,54.7,CONSOLIDATED BUSINESS TRAVEL WEEK 49,BD1 5HQ,PROGRAMME
FOOD STANDARDS AGENCY - Westminster,FOOD STANDARDS AGENCY - Westminster,2016-12-13,EXP - PURCHASE OF GOODS/SERVICES - SUBSISTENCE,Area 6 South East England - Cluster 63,REDFERN TRAVEL LTD,1011701618,54.6,CONSOLIDATED BUSINESS TRAVEL WEEK 49,BD1 5HQ,PROGRAMME
FOOD STANDARDS AGENCY - Westminster,FOOD STANDARDS AGENCY - Westminster,2016-12-19,EXP - PURCHASE OF GOODS/SERVICES - SUBSISTENCE,Area 6 South East England - Cluster 65,REDFERN TRAVEL LTD,1011701666,54.6,CONSOLIDATED BUSINESS TRAVEL WEEK 50,BD1 5HQ,PROGRAMME
FOOD STANDARDS AGENCY - Westminster,FOOD STANDARDS AGENCY - Westminster,2016-12-13,EXP - PURCHASE OF GOODS/SERVICES - TAXI SERVICES,Operations Assurance ,REDFERN TRAVEL LTD,1011701618,51.37,CONSOLIDATED BUSINESS TRAVEL WEEK 49,BD1 5HQ,PROGRAMME
FOOD STANDARDS AGENCY - Westminster,FOOD STANDARDS AGENCY - Westminster,2016-12-19,EXP - PURCHASE OF GOODS/SERVICES - TAXI SERVICES,Operations Assurance ,REDFERN TRAVEL LTD,1011701666,51.37,CONSOLIDATED BUSINESS TRAVEL WEEK 50,BD1 5HQ,PROGRAMME
FOOD STANDARDS AGENCY - Westminster,FOOD STANDARDS AGENCY - Westminster,2016-12-05,EXP - PURCHASE OF GOODS/SERVICES - SUBSISTENCE,Area 6 South East England - Cluster 61,REDFERN TRAVEL LTD,1011701539,51.05,CONSOLIDATED BUSINESS TRAVEL WEEK 44,BD1 5HQ,PROGRAMME
FOOD STANDARDS AGENCY - Westminster,FOOD STANDARDS AGENCY - Westminster,2016-12-19,EXP - PURCHASE OF GOODS/SERVICES - OTHER TRAVEL,Area 6 South East England - Cluster 66,REDFERN TRAVEL LTD,1011701666,50.66,CONSOLIDATED BUSINESS TRAVEL WEEK 50,BD1 5HQ,PROGRAMME
FOOD STANDARDS AGENCY - Westminster,FOOD STANDARDS AGENCY - Westminster,2016-12-13,EXP - PURCHASE OF GOODS/SERVICES - RAIL TRAVEL,Allergens,REDFERN TRAVEL LTD,1011701618,50.15,CONSOLIDATED BUSINESS TRAVEL WEEK 49,BD1 5HQ,ADMIN
FOOD STANDARDS AGENCY - Westminster,FOOD STANDARDS AGENCY - Westminster,2016-12-19,EXP - PURCHASE OF GOODS/SERVICES - SUBSISTENCE,Chair & Deputy Chair,REDFERN TRAVEL LTD,1011701666,50,CONSOLIDATED BUSINESS TRAVEL WEEK 50,BD1 5HQ,ADMIN
FOOD STANDARDS AGENCY - Westminster,FOOD STANDARDS AGENCY - Westminster,2016-12-05,EXP - PURCHASE OF GOODS/SERVICES - SUBSISTENCE,Area 5 South West England - Cluster 55,REDFERN TRAVEL LTD,1011701539,49.6,CONSOLIDATED BUSINESS TRAVEL WEEK 44,BD1 5HQ,PROGRAMME
FOOD STANDARDS AGENCY - Westminster,FOOD STANDARDS AGENCY - Westminster,2016-12-19,EXP - PURCHASE OF GOODS/SERVICES - AIR TRAVEL,Area 6 South East England - Cluster 66,REDFERN TRAVEL LTD,1011701666,49.11,CONSOLIDATED BUSINESS TRAVEL WEEK 50,BD1 5HQ,PROGRAMME
FOOD STANDARDS AGENCY - Westminster,FOOD STANDARDS AGENCY - Westminster,2016-12-13,EXP - PURCHASE OF GOODS/SERVICES - RAIL TRAVEL,Area 4 North East England - Cluster 48,REDFERN TRAVEL LTD,1011701618,49,CONSOLIDATED BUSINESS TRAVEL WEEK 49,BD1 5HQ,PROGRAMME
FOOD STANDARDS AGENCY - Westminster,FOOD STANDARDS AGENCY - Westminster,2016-12-13,EXP - PURCHASE OF GOODS/SERVICES - RAIL TRAVEL,Area 2 Wales - Cluster 22,REDFERN TRAVEL LTD,1011701618,47.75,CONSOLIDATED BUSINESS TRAVEL WEEK 49,BD1 5HQ,PROGRAMME
FOOD STANDARDS AGENCY - Westminster,FOOD STANDARDS AGENCY - Westminster,2016-12-05,EXP - PURCHASE OF GOODS/SERVICES - SUBSISTENCE,Area 5 South West England - Cluster 54,REDFERN TRAVEL LTD,1011701539,46.6,CONSOLIDATED BUSINESS TRAVEL WEEK 44,BD1 5HQ,PROGRAMME
FOOD STANDARDS AGENCY - Westminster,FOOD STANDARDS AGENCY - Westminster,2016-12-19,EXP - PURCHASE OF GOODS/SERVICES - SUBSISTENCE,Area 3 North West England - Cluster 31,REDFERN TRAVEL LTD,1011701666,45.3,CONSOLIDATED BUSINESS TRAVEL WEEK 50,BD1 5HQ,PROGRAMME
FOOD STANDARDS AGENCY - Westminster,FOOD STANDARDS AGENCY - Westminster,2016-12-05,EXP - PURCHASE OF GOODS/SERVICES - RAIL TRAVEL,Food Crime Unit - Prog,REDFERN TRAVEL LTD,1011701539,45,CONSOLIDATED BUSINESS TRAVEL WEEK 44,BD1 5HQ,PROGRAMME
FOOD STANDARDS AGENCY - Westminster,FOOD STANDARDS AGENCY - Westminster,2016-12-13,EXP - PURCHASE OF GOODS/SERVICES - TAXI SERVICES,IT Information & Knowledge Management,REDFERN TRAVEL LTD,1011701618,44.53,CONSOLIDATED BUSINESS TRAVEL WEEK 49,BD1 5HQ,ADMIN
FOOD STANDARDS AGENCY - Westminster,FOOD STANDARDS AGENCY - Westminster,2016-12-19,EXP - PURCHASE OF GOODS/SERVICES - SUBSISTENCE,Area 3 North West England - Cluster 35,REDFERN TRAVEL LTD,1011701666,41.22,CONSOLIDATED BUSINESS TRAVEL WEEK 50,BD1 5HQ,PROGRAMME
FOOD STANDARDS AGENCY - Westminster,FOOD STANDARDS AGENCY - Westminster,2016-12-19,EXP - PURCHASE OF GOODS/SERVICES - SUBSISTENCE,Area 4 North East England - Cluster 42,REDFERN TRAVEL LTD,1011701666,41.22,CONSOLIDATED BUSINESS TRAVEL WEEK 50,BD1 5HQ,PROGRAMME
FOOD STANDARDS AGENCY - Westminster,FOOD STANDARDS AGENCY - Westminster,2016-12-19,EXP - PURCHASE OF GOODS/SERVICES - SUBSISTENCE,Area 4 North East England - Cluster 48,REDFERN TRAVEL LTD,1011701666,41.22,CONSOLIDATED BUSINESS TRAVEL WEEK 50,BD1 5HQ,PROGRAMME
FOOD STANDARDS AGENCY - Westminster,FOOD STANDARDS AGENCY - Westminster,2016-12-19,EXP - PURCHASE OF GOODS/SERVICES - SUBSISTENCE,Area 4 North East England - Cluster 46,REDFERN TRAVEL LTD,1011701666,40.6,CONSOLIDATED BUSINESS TRAVEL WEEK 50,BD1 5HQ,PROGRAMME
FOOD STANDARDS AGENCY - Westminster,FOOD STANDARDS AGENCY - Westminster,2016-12-19,EXP - PURCHASE OF GOODS/SERVICES - SUBSISTENCE,Area 6 South East England - Cluster 61,REDFERN TRAVEL LTD,1011701666,38.6,CONSOLIDATED BUSINESS TRAVEL WEEK 50,BD1 5HQ,PROGRAMME
FOOD STANDARDS AGENCY - Westminster,FOOD STANDARDS AGENCY - Westminster,2016-12-13,EXP - PURCHASE OF GOODS/SERVICES - RAIL TRAVEL,Internal Audit,REDFERN TRAVEL LTD,1011701618,37.9,CONSOLIDATED BUSINESS TRAVEL WEEK 49,BD1 5HQ,ADMIN
FOOD STANDARDS AGENCY - Westminster,FOOD STANDARDS AGENCY - Westminster,2016-12-13,EXP - PURCHASE OF GOODS/SERVICES - TAXI SERVICES,Microbiological Food Safety Branch,REDFERN TRAVEL LTD,1011701618,36.34,CONSOLIDATED BUSINESS TRAVEL WEEK 49,BD1 5HQ,ADMIN
FOOD STANDARDS AGENCY - Westminster,FOOD STANDARDS AGENCY - Westminster,2016-12-05,EXP - PURCHASE OF GOODS/SERVICES - RAIL TRAVEL,IT Information & Knowledge Management,REDFERN TRAVEL LTD,1011701539,35.7,CONSOLIDATED BUSINESS TRAVEL WEEK 44,BD1 5HQ,ADMIN
FOOD STANDARDS AGENCY - Westminster,FOOD STANDARDS AGENCY - Westminster,2016-12-13,EXP - PURCHASE OF GOODS/SERVICES - RAIL TRAVEL,Area 5 South West England - Cluster 56,REDFERN TRAVEL LTD,1011701618,34.1,CONSOLIDATED BUSINESS TRAVEL WEEK 49,BD1 5HQ,PROGRAMME
FOOD STANDARDS AGENCY - Westminster,FOOD STANDARDS AGENCY - Westminster,2016-12-05,EXP - PURCHASE OF GOODS/SERVICES - RAIL TRAVEL,"Employee Relations, Systems and Data",REDFERN TRAVEL LTD,1011701539,33.7,CONSOLIDATED BUSINESS TRAVEL WEEK 44,BD1 5HQ,ADMIN
FOOD STANDARDS AGENCY - Westminster,FOOD STANDARDS AGENCY - Westminster,2016-12-05,EXP - PURCHASE OF GOODS/SERVICES - RAIL TRAVEL,Analysis & Research Branch,REDFERN TRAVEL LTD,1011701539,33.6,CONSOLIDATED BUSINESS TRAVEL WEEK 44,BD1 5HQ,ADMIN
FOOD STANDARDS AGENCY - Westminster,FOOD STANDARDS AGENCY - Westminster,2016-12-19,EXP - PURCHASE OF GOODS/SERVICES - RAIL TRAVEL,Area 4 North East England - Cluster 46,REDFERN TRAVEL LTD,1011701666,33.2,CONSOLIDATED BUSINESS TRAVEL WEEK 50,BD1 5HQ,PROGRAMME
FOOD STANDARDS AGENCY - Westminster,FOOD STANDARDS AGENCY - Westminster,2016-12-19,EXP - PURCHASE OF GOODS/SERVICES - RAIL TRAVEL,Area 6 South East England - Cluster 61,REDFERN TRAVEL LTD,1011701666,33.2,CONSOLIDATED BUSINESS TRAVEL WEEK 50,BD1 5HQ,PROGRAMME
FOOD STANDARDS AGENCY - Westminster,FOOD STANDARDS AGENCY - Westminster,2016-12-13,EXP - PURCHASE OF GOODS/SERVICES - RAIL TRAVEL,Area 5 South West England - Cluster 57,REDFERN TRAVEL LTD,1011701618,31.2,CONSOLIDATED BUSINESS TRAVEL WEEK 49,BD1 5HQ,PROGRAMME
FOOD STANDARDS AGENCY - Westminster,FOOD STANDARDS AGENCY - Westminster,2016-12-13,EXP - PURCHASE OF GOODS/SERVICES - RAIL TRAVEL,Scientific Methods & Laboratory Policy,REDFERN TRAVEL LTD,1011701618,29.3,CONSOLIDATED BUSINESS TRAVEL WEEK 49,BD1 5HQ,ADMIN
FOOD STANDARDS AGENCY - Westminster,FOOD STANDARDS AGENCY - Westminster,2016-12-05,EXP - PURCHASE OF GOODS/SERVICES - RAIL TRAVEL,Scientific Methods & Laboratory Policy,REDFERN TRAVEL LTD,1011701539,28.9,CONSOLIDATED BUSINESS TRAVEL WEEK 44,BD1 5HQ,ADMIN
FOOD STANDARDS AGENCY - Westminster,FOOD STANDARDS AGENCY - Westminster,2016-12-19,EXP - PURCHASE OF GOODS/SERVICES - RAIL TRAVEL,Area 4 North East England - Cluster 48,REDFERN TRAVEL LTD,1011701666,28.1,CONSOLIDATED BUSINESS TRAVEL WEEK 50,BD1 5HQ,PROGRAMME
FOOD STANDARDS AGENCY - Westminster,FOOD STANDARDS AGENCY - Westminster,2016-12-13,EXP - PURCHASE OF GOODS/SERVICES - RAIL TRAVEL,Area 4 North East England - Cluster 44,REDFERN TRAVEL LTD,1011701618,27.4,CONSOLIDATED BUSINESS TRAVEL WEEK 49,BD1 5HQ,PROGRAMME
FOOD STANDARDS AGENCY - Westminster,FOOD STANDARDS AGENCY - Westminster,2016-12-13,EXP - PURCHASE OF GOODS/SERVICES - TAXI SERVICES,Food Production Branch,REDFERN TRAVEL LTD,1011701618,27.11,CONSOLIDATED BUSINESS TRAVEL WEEK 49,BD1 5HQ,ADMIN
FOOD STANDARDS AGENCY - Westminster,FOOD STANDARDS AGENCY - Westminster,2016-12-13,EXP - PURCHASE OF GOODS/SERVICES - RAIL TRAVEL,EU Regulatory Reform Branch,REDFERN TRAVEL LTD,1011701618,27,CONSOLIDATED BUSINESS TRAVEL WEEK 49,BD1 5HQ,ADMIN
FOOD STANDARDS AGENCY - Westminster,FOOD STANDARDS AGENCY - Westminster,2016-12-05,EXP - PURCHASE OF GOODS/SERVICES - RAIL TRAVEL,Chief Scientist,REDFERN TRAVEL LTD,1011701539,23.9,CONSOLIDATED BUSINESS TRAVEL WEEK 44,BD1 5HQ,ADMIN
FOOD STANDARDS AGENCY - Westminster,FOOD STANDARDS AGENCY - Westminster,2016-12-13,EXP - PURCHASE OF GOODS/SERVICES - RAIL TRAVEL,Area 4 North East England - Cluster 43,REDFERN TRAVEL LTD,1011701618,23.45,CONSOLIDATED BUSINESS TRAVEL WEEK 49,BD1 5HQ,PROGRAMME
FOOD STANDARDS AGENCY - Westminster,FOOD STANDARDS AGENCY - Westminster,2016-12-19,EXP - PURCHASE OF GOODS/SERVICES - OTHER ICT COSTS,IT Service Delivery,CAPITA SECURE INFORMATION SOLUTIONS LTD,1011701659,23,YORK STORE CONSUMABLE BUFFER STOCK,SN14 0TW,ADMIN
FOOD STANDARDS AGENCY - Westminster,FOOD STANDARDS AGENCY - Westminster,2016-12-19,EXP - PURCHASE OF GOODS/SERVICES - OTHER ICT COSTS,IT Service Delivery,CAPITA SECURE INFORMATION SOLUTIONS LTD,1011701659,23,LONDON STORE CONSUMABLE BUFFER STOCK,SN14 0TW,ADMIN
FOOD STANDARDS AGENCY - Westminster,FOOD STANDARDS AGENCY - Westminster,2016-12-19,EXP - PURCHASE OF GOODS/SERVICES - TAXI SERVICES,Regulatory Delivery ,REDFERN TRAVEL LTD,1011701666,21.76,CONSOLIDATED BUSINESS TRAVEL WEEK 50,BD1 5HQ,ADMIN
FOOD STANDARDS AGENCY - Westminster,FOOD STANDARDS AGENCY - Westminster,2016-12-19,EXP - PURCHASE OF GOODS/SERVICES - SUBSISTENCE,Area 2 Wales - Cluster 23,REDFERN TRAVEL LTD,1011701666,21.1,CONSOLIDATED BUSINESS TRAVEL WEEK 50,BD1 5HQ,PROGRAMME
FOOD STANDARDS AGENCY - Westminster,FOOD STANDARDS AGENCY - Westminster,2016-12-05,EXP - PURCHASE OF GOODS/SERVICES - RAIL TRAVEL,Imports & Exports Team (Admin),REDFERN TRAVEL LTD,1011701539,17.2,CONSOLIDATED BUSINESS TRAVEL WEEK 44,BD1 5HQ,ADMIN
FOOD STANDARDS AGENCY - Westminster,FOOD STANDARDS AGENCY - Westminster,2016-12-19,EXP - PURCHASE OF GOODS/SERVICES - OTHER ICT COSTS,IT Service Delivery,CAPITA SECURE INFORMATION SOLUTIONS LTD,1011701659,16.4,HP POLIANT FAN ASSEMBLY NOV 16,SN14 0TW,ADMIN
FOOD STANDARDS AGENCY - Westminster,FOOD STANDARDS AGENCY - Westminster,2016-12-05,EXP - PURCHASE OF GOODS/SERVICES - RAIL TRAVEL,Area 6 South East England - Cluster 64,REDFERN TRAVEL LTD,1011701539,16.1,CONSOLIDATED BUSINESS TRAVEL WEEK 44,BD1 5HQ,PROGRAMME
FOOD STANDARDS AGENCY - Westminster,FOOD STANDARDS AGENCY - Westminster,2016-12-19,EXP - PURCHASE OF GOODS/SERVICES - TAXI SERVICES,Chief Executive & Private Office,REDFERN TRAVEL LTD,1011701666,13.63,CONSOLIDATED BUSINESS TRAVEL WEEK 50,BD1 5HQ,ADMIN
FOOD STANDARDS AGENCY - Westminster,FOOD STANDARDS AGENCY - Westminster,2016-12-13,EXP - PURCHASE OF GOODS/SERVICES - OTHER TRAVEL,Microbiological Food Safety Branch,REDFERN TRAVEL LTD,1011701618,12.1,CONSOLIDATED BUSINESS TRAVEL WEEK 49,BD1 5HQ,ADMIN
FOOD STANDARDS AGENCY - Westminster,FOOD STANDARDS AGENCY - Westminster,2016-12-19,EXP - PURCHASE OF GOODS/SERVICES - RAIL TRAVEL,Area 6 South East England - Cluster 65,REDFERN TRAVEL LTD,1011701666,10,CONSOLIDATED BUSINESS TRAVEL WEEK 50,BD1 5HQ,PROGRAMME
FOOD STANDARDS AGENCY - Westminster,FOOD STANDARDS AGENCY - Westminster,2016-12-13,EXP - PURCHASE OF GOODS/SERVICES - TAXI SERVICES,Regulatory Delivery ,REDFERN TRAVEL LTD,1011701618,9.18,CONSOLIDATED BUSINESS TRAVEL WEEK 49,BD1 5HQ,ADMIN
FOOD STANDARDS AGENCY - Westminster,FOOD STANDARDS AGENCY - Westminster,2016-12-05,EXP - PURCHASE OF GOODS/SERVICES - RAIL TRAVEL,Area 5 South West England - Cluster 55,REDFERN TRAVEL LTD,1011701539,7.9,CONSOLIDATED BUSINESS TRAVEL WEEK 44,BD1 5HQ,PROGRAMME
FOOD STANDARDS AGENCY - Westminster,FOOD STANDARDS AGENCY - Westminster,2016-12-19,EXP - AMORTISATION - INTANGIBLE ASSETS,IT Service Delivery,CAPITA SECURE INFORMATION SOLUTIONS LTD,1011701659,7.5,HOME PRINTER BUFFER STOCK,SN14 0TW,ADMIN
FOOD STANDARDS AGENCY - Westminster,FOOD STANDARDS AGENCY - Westminster,2016-12-19,EXP - PURCHASE OF GOODS/SERVICES - OTHER ICT COSTS,IT Service Delivery,CAPITA SECURE INFORMATION SOLUTIONS LTD,1011701659,7.5,HP POLIANT FAN ASSEMBLY NOV 16,SN14 0TW,ADMIN
FOOD STANDARDS AGENCY - Westminster,FOOD STANDARDS AGENCY - Westminster,2016-12-19,EXP - PURCHASE OF GOODS/SERVICES - RAIL TRAVEL,Area 3 North West England - Cluster 32,REDFERN TRAVEL LTD,1011701666,6.9,CONSOLIDATED BUSINESS TRAVEL WEEK 50,BD1 5HQ,PROGRAMME
FOOD STANDARDS AGENCY - Westminster,FOOD STANDARDS AGENCY - Westminster,2016-12-05,EXP - PURCHASE OF GOODS/SERVICES - RAIL TRAVEL,Non Meat Field Ops,REDFERN TRAVEL LTD,1011701539,6.65,CONSOLIDATED BUSINESS TRAVEL WEEK 44,BD1 5HQ,PROGRAMME
FOOD STANDARDS AGENCY - Westminster,FOOD STANDARDS AGENCY - Westminster,2016-12-19,EXP - PURCHASE OF GOODS/SERVICES - OTHER ICT COSTS,IT Service Delivery,CAPITA SECURE INFORMATION SOLUTIONS LTD,1011701659,6,YORK STORE CONSUMABLE BUFFER STOCK,SN14 0TW,ADMIN
FOOD STANDARDS AGENCY - Westminster,FOOD STANDARDS AGENCY - Westminster,2016-12-19,EXP - PURCHASE OF GOODS/SERVICES - OTHER ICT COSTS,IT Service Delivery,CAPITA SECURE INFORMATION SOLUTIONS LTD,1011701659,6,LONDON STORE CONSUMABLE BUFFER STOCK,SN14 0TW,ADMIN
FOOD STANDARDS AGENCY - Westminster,FOOD STANDARDS AGENCY - Westminster,2016-12-19,EXP - PURCHASE OF GOODS/SERVICES - OTHER ICT COSTS,IT Service Delivery,CAPITA SECURE INFORMATION SOLUTIONS LTD,1011701659,4.78,HP POLIANT FAN ASSEMBLY NOV 16,SN14 0TW,ADMIN
FOOD STANDARDS AGENCY - Westminster,FOOD STANDARDS AGENCY - Westminster,2016-12-05,EXP - PURCHASE OF GOODS/SERVICES - SUBSISTENCE,Regulatory & International,REDFERN TRAVEL LTD,1011701539,1.12,CONSOLIDATED BUSINESS TRAVEL WEEK 44,BD1 5HQ,ADMIN
FOOD STANDARDS AGENCY - Westminster,FOOD STANDARDS AGENCY - Westminster,2016-12-13,EXP - PURCHASE OF GOODS/SERVICES - SUBSISTENCE,Area 3 North West England - Cluster 35,REDFERN TRAVEL LTD,1011701618,0.6,CONSOLIDATED BUSINESS TRAVEL WEEK 49,BD1 5HQ,PROGRAMME
FOOD STANDARDS AGENCY - Westminster,FOOD STANDARDS AGENCY - Westminster,2016-12-13,EXP - PURCHASE OF GOODS/SERVICES - SUBSISTENCE,Area 5 South West England - Cluster 55,REDFERN TRAVEL LTD,1011701618,0.6,CONSOLIDATED BUSINESS TRAVEL WEEK 49,BD1 5HQ,PROGRAMME
FOOD STANDARDS AGENCY - Westminster,FOOD STANDARDS AGENCY - Westminster,2016-12-19,EXP - PURCHASE OF GOODS/SERVICES - SUBSISTENCE,Area 3 North West England - Cluster 32,REDFERN TRAVEL LTD,1011701666,-13.03,CONSOLIDATED BUSINESS TRAVEL WEEK 50,BD1 5HQ,PROGRAMME
FOOD STANDARDS AGENCY - Westminster,FOOD STANDARDS AGENCY - Westminster,2016-12-05,EXP - PURCHASE OF GOODS/SERVICES - RAIL TRAVEL,Resilience - Admin,REDFERN TRAVEL LTD,1011701539,-33,CONSOLIDATED BUSINESS TRAVEL WEEK 44,BD1 5HQ,ADMIN
FOOD STANDARDS AGENCY - Westminster,FOOD STANDARDS AGENCY - Westminster,2016-12-19,EXP - PURCHASE OF GOODS/SERVICES - SUBSISTENCE,Area 3 North West England - Cluster 34,REDFERN TRAVEL LTD,1011701666,-57.42,CONSOLIDATED BUSINESS TRAVEL WEEK 50,BD1 5HQ,PROGRAMME
FOOD STANDARDS AGENCY - Westminster,FOOD STANDARDS AGENCY - Westminster,2016-12-19,EXP - PURCHASE OF GOODS/SERV-ICT OUTSOURC&MAINT/SUPP- IT SUPPORT SERVICES,IT Service Delivery,CAPITA SECURE INFORMATION SOLUTIONS LTD,1011701659,-558381.66,CREDIT AGAINST 6060018876,SN14 0TW,ADMIN
